Workbook

Sheet Obsah
F2: 100
D4: B5.3 Střední školy vyučující obory odborného vzdělávání (včetně nástavbového studia)
D5: Zdroje dat jsou uvedeny v zápatí jednotlivých tabulek
D7: Text | F7: Obsah
D9: Tabulka 1 | F9: =B5.3.1!H4&" "&B5.3.1!D5 -> SŠ – odborné vzdělávání – školy ve školním roce 2007/08 až 2017/18 – podle formy vzdělávání a zřizovatele
D11: Tabulka 2 | F11: =B5.3.2!$H$4&" "&B5.3.2!$D$5 -> SŠ – odborné vzdělávání – školy ve školním roce 2007/08 až 2017/18 – podle území
D13: Tabulka 3 | F13: =B5.3.3!H4&" "&B5.3.3!D5 -> SŠ – odborné vzdělávání, denní forma vzdělávání – třídy ve školním roce 2007/08 až 2017/18 – podle formy vzdělávání a zřizovatele
D15: Tabulka 4 | F15: =B5.3.4!H4&" "&B5.3.4!D5 -> SŠ – odborné vzdělávání – žáci, nově přijatí a absolventi ve školním roce 2007/08 až 2017/18 – podle formy vzdělávání a zřizovatele
D17: Tabulka 5 | F17: =B5.3.5!H4&" "&B5.3.5!D5 -> SŠ – odborné vzdělávání – žáci, nově přijatí a absolventi ve školním roce 2007/08 až 2017/18 – podle zřizovatele a druhu vzdělávání
D19: Tabulka 6 | F19: =B5.3.6!H4&" "&B5.3.6!D5 -> SŠ – odborné vzdělávání – dívky, nově přijaté a absolventky ve školním roce 2007/08 až 2017/18 – podle zřizovatele a druhu vzdělávání
D21: Tabulka 7 | F21: =B5.3.7!H4&" "&B5.3.7!D5 -> SŠ – odborné vzdělávání, denní forma vzdělávání – žáci, nově přijatí a absolventi ve školním roce 2007/08 až 2017/18 – podle zřizovatele a druhu vzdělávání
D23: Tabulka 8 | F23: =B5.3.8!H4&" "&B5.3.8!D5 -> SŠ – odborné vzdělávání, ostatní formy vzdělávání – žáci, nově přijatí a absolventi ve školním roce 2007/08 až 2017/18 – podle zřizovatele a druhu vzdělávání
D25: Tabulka 9 | F25: =B5.3.9!H4&" "&B5.3.9!D5 -> SŠ – odborné vzdělávání, denní forma vzdělávání – žáci ve školním roce 2007/08 až 2017/18 – podle území
D27: Tabulka 10 | F27: =B5.3.10!H4&" "&B5.3.10!D5 -> SŠ – odborné vzdělávání, denní forma vzdělávání – nově přijatí ve školním roce 2007/08 až 2017/18 – podle území
D29: Tabulka 11 | F29: =B5.3.11!H4&" "&B5.3.11!D5 -> SŠ – odborné vzdělávání, denní forma vzdělávání – absolventi ve školním roce 2007/08 až 2017/18 – podle území
D31: Tabulka 12 | F31: =B5.3.12!H4&" "&B5.3.12!D5 -> SŠ – odborné vzdělávání – výdaje včetně konzervatoří a VOŠ v letech 2007 až 2017
D33: Tabulka 15 | F33: =B5.3.13!H4&" "&B5.3.13!D5 -> SŠ – odborné vzdělávání a konzervatoře – zaměstnanci (přepočtené počty) v letech 2007 až 2017 (bez škol pro žáky se SVP)
D35: Tabulka 16 | F35: =B5.3.14!H4&" "&B5.3.14!D5 -> SŠ – odborné vzdělávání a konzervatoře – průměrné měsíční mzdy zaměstnanců v letech 2007 až 2017 (bez škol pro žáky se SVP)
E36: Obrazová příloha
D38: Graf 1 | F38: ='GB1'!$H$4&" "&'GB1'!$D$5 -> SŠ – odborné vzdělávání, denní forma vzdělávání – struktura škol ve školním roce 2007/08 až 2017/18 – podle počtu žáků
D40: Graf 2 | F40: ='GB2'!$H$4&" "&'GB2'!$D$5 -> SŠ – odborné vzdělávání – struktura žáků ve školním roce 2007/08 až 2017/18 – podle druhu vzdělávání
D42: Graf 3 | F42: ='GB3'!$H$4&" "&'GB3'!$D$5 -> SŠ – odborné vzdělávání, denní forma vzdělávání – poměrové ukazatele ve školním roce 2007/08 až 2017/18

Sheet B5.3.1
D4: Tab. B5.3.1: | H4: SŠ – odborné vzdělávání – školy
B5: 18 | D5: ve školním roce 2007/08 až 2017/18 – podle formy vzdělávání a zřizovatele
D7: Forma vzdělávání Zřizovatel | J7: 2003/04 | K7: 2004/05 | L7: 2005/06 | M7: 2006/07 | N7: 2007/08 | O7: 2008/09 | P7: 2009/10 | Q7: 2010/11 | R7: 2011/12 | S7: 2012/13 | T7: 2013/14 | U7: 2014/15 | V7: 2015/16 | W7: 2016/17 | X7: 2017/18
J11: 1) | K11: 1) | L11: 1)
D12: Všechny formy vzdělávání
E13: Celkem | J13: 1658 | K13: 1617 | L13: 1650 | M13: 1161 | N13: 1128 | O13: 1117 | P13: 1111 | Q13: 1107 | R13: 1082 | S13: 1049 | T13: 1036 | U13: 1013 | V13: 1007 | W13: 1011 | X13: 1013
E14: v tom | F14: veřejný | J14: 1328 | K14: 1286 | L14: 1319 | M14: 878 | N14: 839 | O14: 828 | P14: 822 | Q14: 819 | R14: 794 | S14: 768 | T14: 762 | U14: 746 | V14: 745 | W14: 747 | X14: 751
F15: v tom | G15: MŠMT | J15: 57 | K15: 57 | L15: 58 | M15: 32 | N15: 32 | O15: 35 | P15: 35 | Q15: 35 | R15: 34 | S15: 32 | T15: 32 | U15: 31 | V15: 31 | W15: 30 | X15: 30
G16: obec | J16: 9 | K16: 10 | L16: 10 | M16: 12 | N16: 13 | O16: 13 | P16: 14 | Q16: 16 | R16: 15 | S16: 16 | T16: 16 | U16: 17 | V16: 17 | W16: 17 | X16: 18
G17: jiný resort | J17: 9 | K17: 9 | L17: 10 | M17: 5 | N17: 5 | O17: 4 | P17: 4 | Q17: 4 | R17: 4 | S17: 4 | T17: 4 | U17: 3 | V17: 3 | W17: 4 | X17: 4
G18: kraj | J18: 1253 | K18: 1210 | L18: 1241 | M18: 829 | N18: 789 | O18: 776 | P18: 769 | Q18: 764 | R18: 741 | S18: 716 | T18: 710 | U18: 695 | V18: 694 | W18: 696 | X18: 699
F19: neveřejný | J19: 330 | K19: 331 | L19: 331 | M19: 283 | N19: 289 | O19: 289 | P19: 289 | Q19: 288 | R19: 288 | S19: 281 | T19: 274 | U19: 267 | V19: 262 | W19: 264 | X19: 262
F20: v tom | G20: privátní sektor | J20: 309 | K20: 310 | L20: 309 | M20: 266 | N20: 272 | O20: 272 | P20: 272 | Q20: 271 | R20: 270 | S20: 262 | T20: 255 | U20: 245 | V20: 240 | W20: 241 | X20: 239
G21: církev | J21: 21 | K21: 21 | L21: 22 | M21: 17 | N21: 17 | O21: 17 | P21: 17 | Q21: 17 | R21: 18 | S21: 19 | T21: 19 | U21: 22 | V21: 22 | W21: 23 | X21: 23
D22: Denní forma vzdělávání
E23: Celkem | J23: 1643 | K23: 1604 | L23: 1637 | M23: 1154 | N23: 1120 | O23: 1111 | P23: 1105 | Q23: 1100 | R23: 1073 | S23: 1039 | T23: 1028 | U23: 1003 | V23: 997 | W23: 1001 | X23: 1002
E24: v tom | F24: veřejný | J24: 1324 | K24: 1283 | L24: 1316 | M24: 878 | N24: 838 | O24: 828 | P24: 822 | Q24: 819 | R24: 794 | S24: 768 | T24: 762 | U24: 745 | V24: 744 | W24: 746 | X24: 749
F25: v tom | G25: MŠMT | J25: 57 | K25: 57 | L25: 58 | M25: 32 | N25: 32 | O25: 35 | P25: 35 | Q25: 35 | R25: 34 | S25: 32 | T25: 32 | U25: 31 | V25: 31 | W25: 30 | X25: 30
G26: obec | J26: 9 | K26: 10 | L26: 10 | M26: 12 | N26: 13 | O26: 13 | P26: 14 | Q26: 16 | R26: 15 | S26: 16 | T26: 16 | U26: 17 | V26: 17 | W26: 17 | X26: 17
G27: jiný resort | J27: 9 | K27: 9 | L27: 10 | M27: 5 | N27: 4 | O27: 4 | P27: 4 | Q27: 4 | R27: 4 | S27: 4 | T27: 4 | U27: 2 | V27: 2 | W27: 3 | X27: 3
G28: kraj | J28: 1249 | K28: 1207 | L28: 1238 | M28: 829 | N28: 789 | O28: 776 | P28: 769 | Q28: 764 | R28: 741 | S28: 716 | T28: 710 | U28: 695 | V28: 694 | W28: 696 | X28: 699
F29: neveřejný | J29: 319 | K29: 321 | L29: 321 | M29: 276 | N29: 282 | O29: 283 | P29: 283 | Q29: 281 | R29: 279 | S29: 271 | T29: 266 | U29: 258 | V29: 253 | W29: 255 | X29: 253
F30: v tom | G30: privátní sektor | J30: 298 | K30: 300 | L30: 299 | M30: 259 | N30: 265 | O30: 266 | P30: 266 | Q30: 264 | R30: 261 | S30: 252 | T30: 247 | U30: 236 | V30: 231 | W30: 232 | X30: 230
G31: církev | J31: 21 | K31: 21 | L31: 22 | M31: 17 | N31: 17 | O31: 17 | P31: 17 | Q31: 17 | R31: 18 | S31: 19 | T31: 19 | U31: 22 | V31: 22 | W31: 23 | X31: 23
D32: Ostatní formy vzdělávání
E33: Celkem | J33: 457 | K33: 466 | L33: 463 | M33: 418 | N33: 404 | O33: 420 | P33: 414 | Q33: 421 | R33: 403 | S33: 391 | T33: 373 | U33: 350 | V33: 341 | W33: 329 | X33: 310
E34: v tom | F34: veřejný | J34: 315 | K34: 328 | L34: 327 | M34: 282 | N34: 265 | O34: 270 | P34: 261 | Q34: 263 | R34: 247 | S34: 240 | T34: 231 | U34: 213 | V34: 207 | W34: 197 | X34: 185
F35: v tom | G35: MŠMT | J35: 0 | K35: 0 | L35: 0 | M35: 0 | N35: 0 | O35: 0 | P35: 0 | Q35: 0 | R35: 0 | S35: 0 | T35: 0 | U35: 0 | V35: 1 | W35: 0 | X35: 0
G36: obec | J36: 0 | K36: 0 | L36: 0 | M36: 0 | N36: 0 | O36: 0 | P36: 0 | Q36: 0 | R36: 0 | S36: 0 | T36: 0 | U36: 0 | V36: 0 | W36: 1 | X36: 2
G37: jiný resort | J37: 3 | K37: 4 | L37: 4 | M37: 3 | N37: 3 | O37: 1 | P37: 2 | Q37: 2 | R37: 2 | S37: 2 | T37: 2 | U37: 2 | V37: 2 | W37: 2 | X37: 2
G38: kraj | J38: 312 | K38: 324 | L38: 323 | M38: 279 | N38: 264 | O38: 269 | P38: 259 | Q38: 261 | R38: 245 | S38: 238 | T38: 229 | U38: 211 | V38: 204 | W38: 194 | X38: 181
F39: neveřejný | J39: 142 | K39: 138 | L39: 136 | M39: 136 | N39: 139 | O39: 150 | P39: 153 | Q39: 158 | R39: 156 | S39: 151 | T39: 142 | U39: 137 | V39: 134 | W39: 132 | X39: 125
F40: v tom | G40: privátní sektor | J40: 141 | K40: 137 | L40: 135 | M40: 135 | N40: 138 | O40: 149 | P40: 152 | Q40: 157 | R40: 154 | S40: 147 | T40: 137 | U40: 132 | V40: 128 | W40: 125 | X40: 118
G41: církev | J41: 1 | K41: 1 | L41: 1 | M41: 1 | N41: 1 | O41: 1 | P41: 1 | Q41: 1 | R41: 2 | S41: 4 | T41: 5 | U41: 5 | V41: 6 | W41: 7 | X41: 7
D42: Komentáře: | X42: Zdroj: databáze MŠMT

Sheet B5.3.2
D4: Tab. B5.3.2: | H4: SŠ – odborné vzdělávání – školy
B5: 0 | D5: ve školním roce 2007/08 až 2017/18 – podle území
D7: Území | J7: 2003/04 | K7: 2004/05 | L7: 2005/06 | M7: 2006/07 | N7: 2007/08 | O7: 2008/09 | P7: 2009/10 | Q7: 2010/11 | R7: 2011/12 | S7: 2012/13 | T7: 2013/14 | U7: 2014/15 | V7: 2015/16 | W7: 2016/17 | X7: 2017/18
J11: 1) | K11: 1) | L11: 1)
E12: Česká republika | H12: CZ0 | J12: 1658 | K12: 1617 | L12: 1650 | M12: 1161 | N12: 1128 | O12: 1117 | P12: 1111 | Q12: 1107 | R12: 1082 | S12: 1049 | T12: 1036 | U12: 1013 | V12: 1007 | W12: 1011 | X12: 1013
E13: Praha | H13: CZ01 | J13: 171 | K13: 170 | L13: 177 | M13: 143 | N13: 139 | O13: 139 | P13: 136 | Q13: 137 | R13: 134 | S13: 131 | T13: 131 | U13: 127 | V13: 127 | W13: 124 | X13: 123
F14: Hlavní město Praha | H14: CZ010 | J14: 171 | K14: 170 | L14: 177 | M14: 143 | N14: 139 | O14: 139 | P14: 136 | Q14: 137 | R14: 134 | S14: 131 | T14: 131 | U14: 127 | V14: 127 | W14: 124 | X14: 123
E15: Střední Čechy | H15: CZ02 | J15: 164 | K15: 162 | L15: 161 | M15: 118 | N15: 123 | O15: 122 | P15: 122 | Q15: 124 | R15: 126 | S15: 125 | T15: 122 | U15: 121 | V15: 121 | W15: 122 | X15: 122
F16: Středočeský kraj | H16: CZ020 | J16: 164 | K16: 162 | L16: 161 | M16: 118 | N16: 123 | O16: 122 | P16: 122 | Q16: 124 | R16: 126 | S16: 125 | T16: 122 | U16: 121 | V16: 121 | W16: 122 | X16: 122
E17: Jihozápad | H17: CZ03 | J17: 191 | K17: 190 | L17: 196 | M17: 134 | N17: 127 | O17: 126 | P17: 125 | Q17: 125 | R17: 121 | S17: 115 | T17: 114 | U17: 114 | V17: 113 | W17: 114 | X17: 112
F18: Jihočeský kraj | H18: CZ031 | J18: 116 | K18: 115 | L18: 118 | M18: 83 | N18: 76 | O18: 76 | P18: 75 | Q18: 75 | R18: 75 | S18: 70 | T18: 69 | U18: 70 | V18: 70 | W18: 70 | X18: 68
F19: Plzeňský kraj | H19: CZ032 | J19: 75 | K19: 75 | L19: 78 | M19: 51 | N19: 51 | O19: 50 | P19: 50 | Q19: 50 | R19: 46 | S19: 45 | T19: 45 | U19: 44 | V19: 43 | W19: 44 | X19: 44
E20: Severozápad | H20: CZ04 | J20: 208 | K20: 204 | L20: 221 | M20: 142 | N20: 133 | O20: 127 | P20: 128 | Q20: 124 | R20: 118 | S20: 108 | T20: 110 | U20: 108 | V20: 106 | W20: 108 | X20: 107
F21: Karlovarský kraj | H21: CZ041 | J21: 55 | K21: 54 | L21: 61 | M21: 36 | N21: 33 | O21: 32 | P21: 32 | Q21: 32 | R21: 32 | S21: 32 | T21: 32 | U21: 32 | V21: 30 | W21: 31 | X21: 30
F22: Ústecký kraj | H22: CZ042 | J22: 153 | K22: 150 | L22: 160 | M22: 106 | N22: 100 | O22: 95 | P22: 96 | Q22: 92 | R22: 86 | S22: 76 | T22: 78 | U22: 76 | V22: 76 | W22: 77 | X22: 77
E23: Severovýchod | H23: CZ05 | J23: 259 | K23: 254 | L23: 259 | M23: 198 | N23: 177 | O23: 174 | P23: 174 | Q23: 173 | R23: 164 | S23: 166 | T23: 165 | U23: 163 | V23: 166 | W23: 166 | X23: 169
F24: Liberecký kraj | H24: CZ051 | J24: 71 | K24: 69 | L24: 74 | M24: 51 | N24: 44 | O24: 44 | P24: 43 | Q24: 43 | R24: 41 | S24: 41 | T24: 41 | U24: 40 | V24: 40 | W24: 39 | X24: 39
F25: Královéhradecký kraj | H25: CZ052 | J25: 108 | K25: 104 | L25: 103 | M25: 77 | N25: 75 | O25: 71 | P25: 72 | Q25: 71 | R25: 68 | S25: 69 | T25: 68 | U25: 66 | V25: 67 | W25: 68 | X25: 69
F26: Pardubický kraj | H26: CZ053 | J26: 80 | K26: 81 | L26: 82 | M26: 70 | N26: 58 | O26: 59 | P26: 59 | Q26: 59 | R26: 55 | S26: 56 | T26: 56 | U26: 57 | V26: 59 | W26: 59 | X26: 61
E27: Jihovýchod | H27: CZ06 | J27: 271 | K27: 245 | L27: 252 | M27: 163 | N27: 165 | O27: 165 | P27: 163 | Q27: 163 | R27: 167 | S27: 158 | T27: 155 | U27: 143 | V27: 141 | W27: 143 | X27: 143
F28: Kraj Vysočina | H28: CZ063 | J28: 92 | K28: 83 | L28: 86 | M28: 56 | N28: 58 | O28: 58 | P28: 58 | Q28: 59 | R28: 61 | S28: 62 | T28: 61 | U28: 52 | V28: 50 | W28: 50 | X28: 50
F29: Jihomoravský kraj | H29: CZ064 | J29: 179 | K29: 162 | L29: 166 | M29: 107 | N29: 107 | O29: 107 | P29: 105 | Q29: 104 | R29: 106 | S29: 96 | T29: 94 | U29: 91 | V29: 91 | W29: 93 | X29: 93
E30: Střední Morava | H30: CZ07 | J30: 221 | K30: 219 | L30: 208 | M30: 146 | N30: 146 | O30: 146 | P30: 147 | Q30: 146 | R30: 142 | S30: 138 | T30: 134 | U30: 132 | V30: 131 | W30: 133 | X30: 135
F31: Olomoucký kraj | H31: CZ071 | J31: 117 | K31: 117 | L31: 109 | M31: 76 | N31: 77 | O31: 81 | P31: 81 | Q31: 81 | R31: 81 | S31: 79 | T31: 78 | U31: 76 | V31: 75 | W31: 76 | X31: 78
F32: Zlínský kraj | H32: CZ072 | J32: 104 | K32: 102 | L32: 99 | M32: 70 | N32: 69 | O32: 65 | P32: 66 | Q32: 65 | R32: 61 | S32: 59 | T32: 56 | U32: 56 | V32: 56 | W32: 57 | X32: 57
E33: Moravskoslezsko | H33: CZ08 | J33: 173 | K33: 173 | L33: 176 | M33: 117 | N33: 118 | O33: 118 | P33: 116 | Q33: 115 | R33: 110 | S33: 108 | T33: 105 | U33: 105 | V33: 102 | W33: 101 | X33: 102
F34: Moravskoslezský kraj | H34: CZ080 | J34: 173 | K34: 173 | L34: 176 | M34: 117 | N34: 118 | O34: 118 | P34: 116 | Q34: 115 | R34: 110 | S34: 108 | T34: 105 | U34: 105 | V34: 102 | W34: 101 | X34: 102
D35: Komentáře: | X35: Zdroj: databáze MŠMT

Sheet B5.3.3
D4: Tab. B5.3.3: | H4: SŠ – odborné vzdělávání, denní forma vzdělávání – třídy
B5: 0 | D5: ve školním roce 2007/08 až 2017/18 – podle formy vzdělávání a zřizovatele
D7: Druh vzdělávání Zřizovatel | J7: 2003/04 | K7: 2004/05 | L7: 2005/06 | M7: 2006/07 | N7: 2007/08 | O7: 2008/09 | P7: 2009/10 | Q7: 2010/11 | R7: 2011/12 | S7: 2012/13 | T7: 2013/14 | U7: 2014/15 | V7: 2015/16 | W7: 2016/17 | X7: 2017/18
E12: Celkem | J12: 16775 | K12: 16747 | L12: 16635 | M12: =M20+M28+M36+M44 -> 16584 | N12: 16479 | O12: 16376.9 | P12: 16292.1 | Q12: 16018.54 | R12: 15318.79 | S12: 14464.99 | T12: 13924.49 | U12: 13607.56 | V12: 13438.25 | W12: 13288.79 | X12: 13239.15
E13: v tom | F13: veřejný | J13: 14393 | K13: 14336 | L13: 14193 | M13: =M21+M29+M37+M45 -> 14091 | N13: 13962 | O13: 13847.9 | P13: 13656.6 | Q13: 13450.71 | R13: 12919.71 | S13: 12180.61 | T13: 11694.3 | U13: 11388.86 | V13: 11226.81 | W13: 11034.55 | X13: 10923.56
F14: v tom | G14: MŠMT | J14: 186 | K14: 201 | L14: 209 | M14: 210 | N14: 215 | O14: 224 | P14: 219 | Q14: 214.01 | R14: 225 | S14: 206.01 | T14: 203.02 | U14: 211 | V14: 219.01 | W14: 217 | X14: 213
G15: obec | J15: 47 | K15: 60 | L15: 60 | M15: 69 | N15: 70 | O15: 72.4 | P15: 75.6 | Q15: 80.47 | R15: 84 | S15: 84.01 | T15: 86 | U15: 90.01 | V15: 91 | W15: 91 | X15: 91
G16: jiný resort | J16: 102 | K16: 80 | L16: 60 | M16: 24 | N16: 34 | O16: 37 | P16: 42 | Q16: 37 | R16: 37 | S16: 37 | T16: 27 | U16: 26 | V16: 27 | W16: 31 | X16: 35
G17: kraj | J17: 14063 | K17: 13995 | L17: 13864 | M17: 13788 | N17: 13643 | O17: 13514.5 | P17: 13320 | Q17: 13119.23 | R17: 12573.71 | S17: 11853.59 | T17: 11378.28 | U17: 11061.85 | V17: 10889.8 | W17: 10695.55 | X17: 10584.56
F18: privátní sektor | J18: 2278 | K18: 2310 | L18: 2339 | M18: 2392 | N18: 2415 | O18: 2424 | P18: 2523.5 | Q18: 2452.83 | R18: 2284.09 | S18: 2162.63 | T18: 2106.94 | U18: 2089.98 | V18: 2082.13 | W18: 2117.99 | X18: 2172.21
F19: církev | J19: 99 | K19: 101 | L19: 103 | M19: 101 | N19: 102 | O19: 105 | P19: 112 | Q19: 115 | R19: 114.99 | S19: 121.75 | T19: 123.25 | U19: 128.72 | V19: 129.31 | W19: 136.25 | X19: 143.38
E20: Střední vzdělávání1) | J20: 40 | K20: 37 | L20: 242 | M20: 227 | N20: 215 | O20: 220 | P20: 231.2 | Q20: 247.9 | R20: 257.3 | S20: 247.71 | T20: 265.67 | U20: 277.43 | V20: 309.14 | W20: 329.6 | X20: 361.23
E21: v tom | F21: veřejný | J21: 26 | K21: 22 | L21: 209 | M21: 194 | N21: 182 | O21: 186 | P21: 187.2 | Q21: 202.9 | R21: 215.3 | S21: 204.73 | T21: 216.68 | U21: 225.43 | V21: 251.14 | W21: 246.59 | X21: 260.22
F22: v tom | G22: MŠMT | J22: . | K22: . | L22: 43 | M22: 40 | N22: 42 | O22: 46 | P22: 41.2 | Q22: 39.9 | R22: 37.6 | S22: 23 | T22: 20.01 | U22: 22 | V22: 25 | W22: 21 | X22: 19
G23: obec | J23: 0 | K23: 0 | L23: 3 | M23: 4 | N23: 5 | O23: 5 | P23: 6 | Q23: 9 | R23: 10 | S23: 9 | T23: 7 | U23: 9 | V23: 10 | W23: 10.04 | X23: 10
G24: jiný resort | J24: 0 | K24: 0 | L24: 0 | M24: 0 | N24: 0 | O24: 0 | P24: 0 | Q24: 0 | R24: 0 | S24: 0 | T24: 0 | U24: 0 | V24: 0 | W24: 0 | X24: 0
G25: kraj | J25: 26 | K25: 22 | L25: 163 | M25: 150 | N25: 135 | O25: 135 | P25: 140 | Q25: 154 | R25: 167.7 | S25: 172.73 | T25: 189.67 | U25: 194.43 | V25: 216.14 | W25: 215.55 | X25: 231.22
F26: privátní sektor | J26: 5 | K26: 5 | L26: 19 | M26: 20 | N26: 22 | O26: 23 | P26: 29 | Q26: 29 | R26: 26 | S26: 23.99 | T26: 28 | U26: 28 | V26: 33 | W26: 53 | X26: 69
F27: církev | J27: 9 | K27: 10 | L27: 14 | M27: 13 | N27: 11 | O27: 11 | P27: 15 | Q27: 16 | R27: 16 | S27: 18.99 | T27: 20.99 | U27: 24 | V27: 25 | W27: 30.01 | X27: 32.01
E28: Střední vzdělávání s výučním listem1) | J28: 5419 | K28: 5163 | L28: 6370 | M28: 6164 | N28: 5929.3 | O28: 5683.2 | P28: 5497.2 | Q28: 5389.98 | R28: 5139.29 | S28: 4929.05 | T28: 4847.02 | U28: 4789.93 | V28: 4731.29 | W28: 4607.33 | X28: 4502.98
E29: v tom | F29: veřejný | J29: 4821 | K29: 4600 | L29: 5742 | M29: 5542 | N29: 5329.3 | O29: 5099.2 | P29: 4889.2 | Q29: 4793.91 | R29: 4590.32 | S29: 4373.02 | T29: 4296.07 | U29: 4238.91 | V29: 4182.29 | W29: 4042.31 | X29: 3918.89
F30: v tom | G30: MŠMT | J30: . | K30: . | L30: 140 | M30: 142 | N30: 144 | O30: 146 | P30: 144 | Q30: 140.01 | R30: 151 | S30: 150.01 | T30: 151.01 | U30: 160 | V30: 165.01 | W30: 163 | X30: 159
G31: obec | J31: 9 | K31: 9 | L31: 10 | M31: 17 | N31: 14.2 | O31: 14.4 | P31: 16.6 | Q31: 17.47 | R31: 21 | S31: 23.01 | T31: 25 | U31: 27.01 | V31: 26 | W31: 25.96 | X31: 28
G32: jiný resort | J32: 12 | K32: 12 | L32: 14 | M32: 0 | N32: 14 | O32: 14 | P32: 16 | Q32: 10 | R32: 10 | S32: 11 | T32: 1 | U32: 0 | V32: 0 | W32: 0 | X32: 0
G33: kraj | J33: 4800 | K33: 4579 | L33: 5578 | M33: 5383 | N33: 5157.1 | O33: 4924.8 | P33: 4712.6 | Q33: 4626.43 | R33: 4408.32 | S33: 4189 | T33: 4119.06 | U33: 4051.9 | V33: 3991.28 | W33: 3853.35 | X33: 3731.89
F34: privátní sektor | J34: 589 | K34: 554 | L34: 615 | M34: 607 | N34: 585 | O34: 568 | P34: 591 | Q34: 578.07 | R34: 531.97 | S34: 538.03 | T34: 533.95 | U34: 534.02 | V34: 534 | W34: 550.02 | X34: 569.09
F35: církev | J35: 9 | K35: 9 | L35: 13 | M35: 15 | N35: 15 | O35: 16 | P35: 17 | Q35: 18 | R35: 17 | S35: 18 | T35: 17 | U35: 17 | V35: 15 | W35: 15 | X35: 15
E36: Střední vzdělávání s maturitní zkouškou1) | J36: 8652 | K36: 8863 | L36: 9139 | M36: 9340 | N36: 9491.7 | O36: 9634.7 | P36: 9733.7 | Q36: 9555.65 | R36: 9157.77 | S36: 8603.18 | T36: 8177.13 | U36: 7951.88 | V36: 7843.48 | W36: 7823.57 | X36: 7862.19
E37: v tom | F37: veřejný | J37: 7197 | K37: 7362 | L37: 7584 | M37: 7721 | N37: 7817.7 | O37: 7920.7 | P37: 7931.2 | Q37: 7795.89 | R37: 7491.66 | S37: 7050.84 | T37: 6672.1 | U37: 6453.32 | V37: 6344.2 | W37: 6315.35 | X37: 6329.71
F38: v tom | G38: MŠMT | J38: . | K38: . | L38: 25 | M38: 27 | N38: 28 | O38: 30 | P38: 31.8 | Q38: 32.1 | R38: 33.4 | S38: 30 | T38: 30 | U38: 28 | V38: 28 | W38: 30 | X38: 30
G39: obec | J39: 35 | K39: 47 | L39: 47 | M39: 48 | N39: 50.8 | O39: 53 | P39: 53 | Q39: 54 | R39: 53 | S39: 52 | T39: 54 | U39: 54 | V39: 55 | W39: 55 | X39: 53
G40: jiný resort | J40: 82 | K40: 61 | L40: 42 | M40: 23 | N40: 20 | O40: 23 | P40: 26 | Q40: 27 | R40: 27 | S40: 26 | T40: 26 | U40: 26 | V40: 27 | W40: 31 | X40: 35
G41: kraj | J41: 7080 | K41: 7254 | L41: 7470 | M41: 7623 | N41: 7718.9 | O41: 7814.7 | P41: 7820.4 | Q41: 7682.79 | R41: 7378.26 | S41: 6942.84 | T41: 6562.1 | U41: 6345.32 | V41: 6234.2 | W41: 6199.35 | X41: 6211.71
F42: privátní sektor | J42: 1384 | K42: 1429 | L42: 1481 | M42: 1548 | N42: 1600 | O42: 1638 | P42: 1724.5 | Q42: 1680.76 | R42: 1587.12 | S42: 1471.58 | T42: 1423.77 | U42: 1414.84 | V42: 1413.97 | W42: 1420.98 | X42: 1440.11
F43: církev | J43: 71 | K43: 72 | L43: 74 | M43: 71 | N43: 74 | O43: 76 | P43: 78 | Q43: 79 | R43: 78.99 | S43: 80.76 | T43: 81.26 | U43: 83.72 | V43: 85.31 | W43: 87.24 | X43: 92.37
E44: Nástavbové studium | J44: 886 | K44: 899 | L44: 884 | M44: 853 | N44: 843 | O44: 839 | P44: 830 | Q44: 825.01 | R44: 764.43 | S44: 685.05 | T44: 634.67 | U44: 588.32 | V44: 554.34 | W44: 528.29 | X44: 512.75
E45: v tom | F45: veřejný | J45: 672 | K45: 670 | L45: 658 | M45: 634 | N45: 633 | O45: 642 | P45: 649 | Q45: 658.01 | R45: 622.43 | S45: 552.02 | T45: 509.45 | U45: 471.2 | V45: 449.18 | W45: 430.3 | X45: 414.74
F46: v tom | G46: MŠMT | J46: . | K46: . | L46: 1 | M46: 1 | N46: 1 | O46: 2 | P46: 2 | Q46: 2 | R46: 3 | S46: 3 | T46: 2 | U46: 1 | V46: 1 | W46: 3 | X46: 5
G47: obec | J47: 0 | K47: 0 | L47: 0 | M47: 0 | N47: 0 | O47: 0 | P47: 0 | Q47: 0 | R47: 0 | S47: 0 | T47: 0 | U47: 0 | V47: 0 | W47: 0 | X47: 0
G48: jiný resort | J48: 6 | K48: 5 | L48: 4 | M48: 1 | N48: 0 | O48: 0 | P48: 0 | Q48: 0 | R48: 0 | S48: 0 | T48: 0 | U48: 0 | V48: 0 | W48: 0 | X48: 0
G49: kraj | J49: 666 | K49: 665 | L49: 653 | M49: 632 | N49: 632 | O49: 640 | P49: 647 | Q49: 656.01 | R49: 619.43 | S49: 549.02 | T49: 507.45 | U49: 470.2 | V49: 448.18 | W49: 427.3 | X49: 409.74
F50: privátní sektor | J50: 212 | K50: 227 | L50: 224 | M50: 217 | N50: 208 | O50: 195 | P50: 179 | Q50: 165 | R50: 139 | S50: 129.03 | T50: 121.22 | U50: 113.12 | V50: 101.16 | W50: 93.99 | X50: 94.01
F51: církev | J51: 2 | K51: 2 | L51: 2 | M51: 2 | N51: 2 | O51: 2 | P51: 2 | Q51: 2 | R51: 3 | S51: 4 | T51: 4 | U51: 4 | V51: 4 | W51: 4 | X51: 4
D52: Komentáře: | X52: Zdroj: databáze MŠMT
D53: 1) | E53: Včetně zkráceného studia.

Sheet B5.3.4
D4: Tab. B5.3.4: | H4: SŠ – odborné vzdělávání – žáci, nově přijatí a absolventi
B5: 18 | D5: ve školním roce 2007/08 až 2017/18 – podle formy vzdělávání a zřizovatele
D7: Forma vzdělávání Zřizovatel | J7: 2003/04 | K7: 2004/05 | L7: 2005/06 | M7: 2006/07 | N7: 2007/08 | O7: 2008/09 | P7: 2009/10 | Q7: 2010/11 | R7: 2011/12 | S7: 2012/13 | T7: 2013/14 | U7: 2014/15 | V7: 2015/16 | W7: 2016/17 | X7: 2017/18
D12: Žáci
E13: Celkem | J13: 433327 | K13: 435994 | L13: 433000 | M13: 430231 | N13: 422897 | O13: 418305 | P13: 412409 | Q13: 393852 | R13: 366255 | S13: 339741 | T13: 320265 | U13: 307876 | V13: 299062 | W13: 295855 | X13: 291981
E14: v tom | F14: veřejný | J14: 366627 | K14: 368272 | L14: 365040 | M14: 361502 | N14: 354333 | O14: 349318 | P14: 343213 | Q14: 329685 | R14: 309116 | S14: 287835 | T14: 271421 | U14: 259919 | V14: 251477 | W14: 247164 | X14: 242815
F15: v tom | G15: MŠMT | J15: 1557 | K15: 1499 | L15: 1544 | M15: 1498 | N15: 1582 | O15: 1572 | P15: 1610 | Q15: 1535 | R15: 1494 | S15: 1372 | T15: 1298 | U15: 1202 | V15: 1223 | W15: 1190 | X15: 1117
G16: obec | J16: 1036 | K16: 1339 | L16: 1410 | M16: 1572 | N16: 1572 | O16: 1614 | P16: 1635 | Q16: 1615 | R16: 1597 | S16: 1520 | T16: 1540 | U16: 1566 | V16: 1578 | W16: 1525 | X16: 1564
G17: jiný resort | J17: 1958 | K17: 1776 | L17: 1372 | M17: 835 | N17: 918 | O17: 935 | P17: 1089 | Q17: 1144 | R17: 1090 | S17: 1089 | T17: 1167 | U17: 1173 | V17: 1240 | W17: 1360 | X17: 1459
G18: kraj | J18: 362076 | K18: 363658 | L18: 360714 | M18: 357597 | N18: 350261 | O18: 345197 | P18: 338879 | Q18: 325391 | R18: 304935 | S18: 283854 | T18: 267416 | U18: 255978 | V18: 247436 | W18: 243089 | X18: 238675
F19: privátní sektor | J19: 64322 | K19: 65364 | L19: 65590 | M19: 66351 | N19: 66182 | O19: 66599 | P19: 66816 | Q19: 61700 | R19: 54667 | S19: 49288 | T19: 46209 | U19: 45241 | V19: 44799 | W19: 45808 | X19: 46254
F20: církev | J20: 2378 | K20: 2358 | L20: 2370 | M20: 2378 | N20: 2382 | O20: 2388 | P20: 2380 | Q20: 2467 | R20: 2472 | S20: 2618 | T20: 2635 | U20: 2716 | V20: 2786 | W20: 2883 | X20: 2912
E21: Denní forma vzdělávání | J21: 400488 | K21: 400940 | L21: 398269 | M21: 396320 | N21: 388493 | O21: 382001 | P21: 376566 | Q21: 358809 | R21: 336005 | S21: 313334 | T21: 295863 | U21: 285327 | V21: 277988 | W21: 275466 | X21: 273811
E22: v tom | F22: veřejný | J22: 346820 | K22: 346801 | L22: 344009 | M22: 341232 | N22: 334053 | O22: 328179 | P22: 322447 | Q22: 308942 | R22: 290976 | S22: 271825 | T22: 256559 | U22: 246941 | V22: 239673 | W22: 236339 | X22: 233832
F23: v tom | G23: MŠMT | J23: 1557 | K23: 1499 | L23: 1544 | M23: 1498 | N23: 1582 | O23: 1572 | P23: 1610 | Q23: 1535 | R23: 1494 | S23: 1372 | T23: 1298 | U23: 1202 | V23: 1223 | W23: 1190 | X23: 1117
G24: obec | J24: 1036 | K24: 1339 | L24: 1410 | M24: 1572 | N24: 1572 | O24: 1614 | P24: 1635 | Q24: 1615 | R24: 1597 | S24: 1520 | T24: 1540 | U24: 1566 | V24: 1563 | W24: 1519 | X24: 1496
G25: jiný resort | J25: 1609 | K25: 1334 | L25: 1018 | M25: 654 | N25: 677 | O25: 733 | P25: 865 | Q25: 779 | R25: 755 | S25: 762 | T25: 703 | U25: 711 | V25: 710 | W25: 789 | X25: 911
G26: kraj | J26: 342618 | K26: 342629 | L26: 340037 | M26: 337508 | N26: 330222 | O26: 324260 | P26: 318337 | Q26: 305013 | R26: 287130 | S26: 268171 | T26: 253018 | U26: 243462 | V26: 236177 | W26: 232841 | X26: 230308
F27: privátní sektor | J27: 51346 | K27: 51847 | L27: 51943 | M27: 52798 | N27: 52112 | O27: 51518 | P27: 51789 | Q27: 47485 | R27: 42664 | S27: 39107 | T27: 36914 | U27: 35988 | V27: 35863 | W27: 36596 | X27: 37353
F28: církev | J28: 2322 | K28: 2292 | L28: 2317 | M28: 2290 | N28: 2328 | O28: 2304 | P28: 2330 | Q28: 2382 | R28: 2365 | S28: 2402 | T28: 2390 | U28: 2398 | V28: 2452 | W28: 2531 | X28: 2626
E29: Ostatní formy vzdělávání | J29: 32839 | K29: 35054 | L29: 34731 | M29: 33911 | N29: 34404 | O29: 36304 | P29: 35843 | Q29: 35043 | R29: 30250 | S29: 26407 | T29: 24402 | U29: 22549 | V29: 21074 | W29: 20389 | X29: 18170
E30: v tom | F30: veřejný | J30: 19807 | K30: 21471 | L30: 21031 | M30: 20270 | N30: 20280 | O30: 21139 | P30: 20766 | Q30: 20743 | R30: 18140 | S30: 16010 | T30: 14862 | U30: 12978 | V30: 11804 | W30: 10825 | X30: 8983
F31: v tom | G31: MŠMT | J31: 0 | K31: 0 | L31: 0 | M31: 0 | N31: 0 | O31: 0 | P31: 0 | Q31: 0 | R31: 0 | S31: 0 | T31: 0 | U31: 0 | V31: 0 | W31: 0 | X31: 0
G32: obec | J32: 0 | K32: 0 | L32: 0 | M32: 0 | N32: 0 | O32: 0 | P32: 0 | Q32: 0 | R32: 0 | S32: 0 | T32: 0 | U32: 0 | V32: 15 | W32: 6 | X32: 68
G33: jiný resort | J33: 349 | K33: 442 | L33: 354 | M33: 181 | N33: 241 | O33: 202 | P33: 224 | Q33: 365 | R33: 335 | S33: 327 | T33: 464 | U33: 462 | V33: 530 | W33: 571 | X33: 548
G34: kraj | J34: 19458 | K34: 21029 | L34: 20677 | M34: 20089 | N34: 20039 | O34: 20937 | P34: 20542 | Q34: 20378 | R34: 17805 | S34: 15683 | T34: 14398 | U34: 12516 | V34: 11259 | W34: 10248 | X34: 8367
F35: privátní sektor | J35: 12976 | K35: 13517 | L35: 13647 | M35: 13553 | N35: 14070 | O35: 15081 | P35: 15027 | Q35: 14215 | R35: 12003 | S35: 10181 | T35: 9295 | U35: 9253 | V35: 8936 | W35: 9212 | X35: 8901
F36: církev | J36: 56 | K36: 66 | L36: 53 | M36: 88 | N36: 54 | O36: 84 | P36: 50 | Q36: 85 | R36: 107 | S36: 216 | T36: 245 | U36: 318 | V36: 334 | W36: 352 | X36: 286
D37: Nově přijatí
E38: Celkem | J38: 142327 | K38: 140277 | L38: 135266 | M38: 138301 | N38: 134240 | O38: 132280 | P38: 128641 | Q38: 115197 | R38: 105284 | S38: 98643 | T38: 96803 | U38: 94706 | V38: 92491 | W38: 91805 | X38: 90358
E39: v tom | F39: veřejný | J39: 119601 | K39: 118408 | L39: 114364 | M39: 115273 | N39: 111932 | O39: 110373 | P39: 107311 | Q39: 97274 | R39: 89883 | S39: 83864 | T39: 82110 | U39: 79345 | V39: 77497 | W39: 76236 | X39: 75046
F40: v tom | G40: MŠMT | J40: 651 | K40: 663 | L40: 706 | M40: 672 | N40: 709 | O40: 674 | P40: 739 | Q40: 600 | R40: 607 | S40: 503 | T40: 432 | U40: 425 | V40: 454 | W40: 437 | X40: 371
G41: obec | J41: 269 | K41: 422 | L41: 415 | M41: 420 | N41: 456 | O41: 518 | P41: 428 | Q41: 416 | R41: 438 | S41: 451 | T41: 515 | U41: 471 | V41: 446 | W41: 431 | X41: 486
G42: jiný resort | J42: 553 | K42: 486 | L42: 330 | M42: 214 | N42: 333 | O42: 381 | P42: 452 | Q42: 417 | R42: 322 | S42: 350 | T42: 337 | U42: 317 | V42: 341 | W42: 352 | X42: 416
G43: kraj | J43: 118128 | K43: 116837 | L43: 112913 | M43: 113967 | N43: 110434 | O43: 108800 | P43: 105692 | Q43: 95841 | R43: 88516 | S43: 82560 | T43: 80826 | U43: 78132 | V43: 76256 | W43: 75016 | X43: 73773
F44: privátní sektor | J44: 22020 | K44: 21112 | L44: 20248 | M44: 22308 | N44: 21607 | O44: 21199 | P44: 20643 | Q44: 17148 | R44: 14671 | S44: 13919 | T44: 13899 | U44: 14450 | V44: 14114 | W44: 14647 | X44: 14420
F45: církev | J45: 706 | K45: 757 | L45: 654 | M45: 720 | N45: 701 | O45: 708 | P45: 687 | Q45: 775 | R45: 730 | S45: 860 | T45: 794 | U45: 911 | V45: 880 | W45: 922 | X45: 892
E46: Denní forma vzdělávání | J46: 127619 | K46: 125246 | L46: 122311 | M46: 124669 | N46: 119675 | O46: 116788 | P46: 114585 | Q46: 101232 | R46: 94387 | S46: 89116 | T46: 87261 | U46: 86170 | V46: 84531 | W46: 83645 | X46: 83675
E47: v tom | F47: veřejný | J47: 110344 | K47: 108427 | L47: 105958 | M47: 106872 | N47: 102925 | O47: 100757 | P47: 98755 | Q47: 88475 | R47: 82904 | S47: 77603 | T47: 75890 | U47: 74345 | V47: 72827 | W47: 71722 | X47: 71720
F48: v tom | G48: MŠMT | J48: 651 | K48: 663 | L48: 706 | M48: 672 | N48: 709 | O48: 674 | P48: 739 | Q48: 600 | R48: 607 | S48: 503 | T48: 432 | U48: 425 | V48: 454 | W48: 437 | X48: 371
G49: obec | J49: 269 | K49: 422 | L49: 415 | M49: 420 | N49: 456 | O49: 518 | P49: 428 | Q49: 416 | R49: 438 | S49: 451 | T49: 515 | U49: 471 | V49: 431 | W49: 429 | X49: 440
G50: jiný resort | J50: 391 | K50: 243 | L50: 193 | M50: 151 | N50: 244 | O50: 277 | P50: 339 | Q50: 230 | R50: 194 | S50: 227 | T50: 212 | U50: 211 | V50: 205 | W50: 268 | X50: 326
G51: kraj | J51: 109033 | K51: 107099 | L51: 104644 | M51: 105629 | N51: 101516 | O51: 99288 | P51: 97249 | Q51: 87229 | R51: 81665 | S51: 76422 | T51: 74731 | U51: 73238 | V51: 71737 | W51: 70588 | X51: 70583
F52: privátní sektor | J52: 16569 | K52: 16098 | L52: 15699 | M52: 17111 | N52: 16049 | O52: 15359 | P52: 15143 | Q52: 12023 | R52: 10814 | S52: 10776 | T52: 10663 | U52: 11049 | V52: 10954 | W52: 11120 | X52: 11173
F53: církev | J53: 706 | K53: 721 | L53: 654 | M53: 686 | N53: 701 | O53: 672 | P53: 687 | Q53: 734 | R53: 669 | S53: 737 | T53: 708 | U53: 776 | V53: 750 | W53: 803 | X53: 782
E54: Ostatní formy vzdělávání | J54: 14708 | K54: 15031 | L54: 12955 | M54: 13632 | N54: 14565 | O54: 15492 | P54: 14056 | Q54: 13965 | R54: 10897 | S54: 9527 | T54: 9542 | U54: 8536 | V54: 7960 | W54: 8160 | X54: 6683
E55: v tom | F55: veřejný | J55: 9257 | K55: 9981 | L55: 8406 | M55: 8401 | N55: 9007 | O55: 9616 | P55: 8556 | Q55: 8799 | R55: 6979 | S55: 6261 | T55: 6220 | U55: 5000 | V55: 4670 | W55: 4514 | X55: 3326
F56: v tom | G56: MŠMT | J56: 0 | K56: 0 | L56: 0 | M56: 0 | N56: 0 | O56: 0 | P56: 0 | Q56: 0 | R56: 0 | S56: 0 | T56: 0 | U56: 0 | V56: 0 | W56: 0 | X56: 0
G57: obec | J57: 0 | K57: 0 | L57: 0 | M57: 0 | N57: 0 | O57: 0 | P57: 0 | Q57: 0 | R57: 0 | S57: 0 | T57: 0 | U57: 0 | V57: 15 | W57: 2 | X57: 46
G58: jiný resort | J58: 162 | K58: 243 | L58: 137 | M58: 63 | N58: 89 | O58: 104 | P58: 113 | Q58: 187 | R58: 128 | S58: 123 | T58: 125 | U58: 106 | V58: 136 | W58: 84 | X58: 90
G59: kraj | J59: 9095 | K59: 9738 | L59: 8269 | M59: 8338 | N59: 8918 | O59: 9512 | P59: 8443 | Q59: 8612 | R59: 6851 | S59: 6138 | T59: 6095 | U59: 4894 | V59: 4519 | W59: 4428 | X59: 3190
F60: privátní sektor | J60: 5451 | K60: 5014 | L60: 4549 | M60: 5197 | N60: 5558 | O60: 5840 | P60: 5500 | Q60: 5125 | R60: 3857 | S60: 3143 | T60: 3236 | U60: 3401 | V60: 3160 | W60: 3527 | X60: 3247
F61: církev | J61: 0 | K61: 36 | L61: 0 | M61: 34 | N61: 0 | O61: 36 | P61: 0 | Q61: 41 | R61: 61 | S61: 123 | T61: 86 | U61: 135 | V61: 130 | W61: 119 | X61: 110
D62: Absolventi
E63: Celkem | J63: 106488 | K63: 107437 | L63: 108484 | M63: 105931 | N63: 101048 | O63: 98450 | P63: 92065 | Q63: 85504 | R63: 82852 | S63: 78279 | T63: 68832 | U63: 63231 | V63: 58106 | W63: 58136 | X63: .
E64: v tom | F64: veřejný | J64: 90665 | K64: 90986 | L64: 90964 | M64: 88891 | N64: 84747 | O64: 81735 | P64: 76030 | Q64: 72174 | R64: 69977 | S64: 66328 | T64: 58610 | U64: 53871 | V64: 49051 | W64: 48889 | X64: .
F65: v tom | G65: MŠMT | J65: 387 | K65: 358 | L65: 367 | M65: 325 | N65: 327 | O65: 339 | P65: 348 | Q65: 293 | R65: 269 | S65: 248 | T65: 291 | U65: 240 | V65: 201 | W65: 203 | X65: .
G66: obec | J66: 331 | K66: 306 | L66: 311 | M66: 379 | N66: 406 | O66: 316 | P66: 375 | Q66: 391 | R66: 376 | S66: 340 | T66: 296 | U66: 283 | V66: 288 | W66: 309 | X66: .
G67: jiný resort | J67: 633 | K67: 525 | L67: 331 | M67: 345 | N67: 214 | O67: 184 | P67: 142 | Q67: 199 | R67: 298 | S67: 230 | T67: 277 | U67: 271 | V67: 288 | W67: 310 | X67: .
G68: kraj | J68: 89314 | K68: 89797 | L68: 89955 | M68: 87842 | N68: 83800 | O68: 80896 | P68: 75165 | Q68: 71291 | R68: 69034 | S68: 65510 | T68: 57746 | U68: 53077 | V68: 48274 | W68: 48067 | X68: .
F69: privátní sektor | J69: 15193 | K69: 15957 | L69: 16999 | M69: 16376 | N69: 15748 | O69: 16180 | P69: 15521 | Q69: 12846 | R69: 12365 | S69: 11433 | T69: 9681 | U69: 8889 | V69: 8489 | W69: 8678 | X69: .
F70: církev | J70: 630 | K70: 494 | L70: 521 | M70: 664 | N70: 553 | O70: 535 | P70: 514 | Q70: 484 | R70: 510 | S70: 518 | T70: 541 | U70: 471 | V70: 566 | W70: 569 | X70: .
E71: Denní forma vzdělávání | J71: 100209 | K71: 100961 | L71: 100632 | M71: 98046 | N71: 94136 | O71: 91007 | P71: 84882 | Q71: 79208 | R71: 76919 | S71: 72902 | T71: 64316 | U71: 59086 | V71: 54082 | W71: 53960 | X71: .
E72: v tom | F72: veřejný | J72: 87119 | K72: 87525 | L72: 86816 | M72: 84386 | N72: 80878 | O72: 77846 | P72: 72284 | Q72: 68468 | R72: 66654 | S72: 63232 | T72: 56129 | U72: 51741 | V72: 47098 | W72: 46975 | X72: .
F73: v tom | G73: MŠMT | J73: 387 | K73: 358 | L73: 367 | M73: 325 | N73: 327 | O73: 339 | P73: 348 | Q73: 293 | R73: 269 | S73: 248 | T73: 291 | U73: 240 | V73: 201 | W73: 203 | X73: .
G74: obec | J74: 331 | K74: 306 | L74: 311 | M74: 379 | N74: 406 | O74: 316 | P74: 375 | Q74: 391 | R74: 376 | S74: 340 | T74: 296 | U74: 283 | V74: 288 | W74: 309 | X74: .
G75: jiný resort | J75: 456 | K75: 427 | L75: 284 | M75: 255 | N75: 155 | O75: 117 | P75: 141 | Q75: 131 | R75: 177 | S75: 173 | T75: 169 | U75: 136 | V75: 139 | W75: 132 | X75: .
G76: kraj | J76: 85945 | K76: 86434 | L76: 85854 | M76: 83427 | N76: 79990 | O76: 77074 | P76: 71420 | Q76: 67653 | R76: 65832 | S76: 62471 | T76: 55373 | U76: 51082 | V76: 46470 | W76: 46331 | X76: .
F77: privátní sektor | J77: 12477 | K77: 12942 | L77: 13295 | M77: 13019 | N77: 12705 | O77: 12636 | P77: 12084 | Q77: 10269 | R77: 9755 | S77: 9168 | T77: 7692 | U77: 6924 | V77: 6495 | W77: 6551 | X77: .
F78: církev | J78: 613 | K78: 494 | L78: 521 | M78: 641 | N78: 553 | O78: 525 | P78: 514 | Q78: 471 | R78: 510 | S78: 502 | T78: 495 | U78: 421 | V78: 489 | W78: 434 | X78: .
E79: Ostatní formy vzdělávání | J79: 6279 | K79: 6476 | L79: 7852 | M79: 7885 | N79: 6912 | O79: 7443 | P79: 7183 | Q79: 6296 | R79: 5933 | S79: 5377 | T79: 4516 | U79: 4145 | V79: 4024 | W79: 4176 | X79: .
E80: v tom | F80: veřejný | J80: 3546 | K80: 3461 | L80: 4148 | M80: 4505 | N80: 3869 | O80: 3889 | P80: 3746 | Q80: 3706 | R80: 3323 | S80: 3096 | T80: 2481 | U80: 2130 | V80: 1953 | W80: 1914 | X80: .
F81: v tom | G81: MŠMT | J81: 0 | K81: 0 | L81: 0 | M81: 0 | N81: 0 | O81: 0 | P81: 0 | Q81: 0 | R81: 0 | S81: 0 | T81: 0 | U81: 0 | V81: 0 | W81: 0 | X81: .
G82: obec | J82: 0 | K82: 0 | L82: 0 | M82: 0 | N82: 0 | O82: 0 | P82: 0 | Q82: 0 | R82: 0 | S82: 0 | T82: 0 | U82: 0 | V82: 0 | W82: 0 | X82: .
G83: jiný resort | J83: 177 | K83: 98 | L83: 47 | M83: 90 | N83: 59 | O83: 67 | P83: 1 | Q83: 68 | R83: 121 | S83: 57 | T83: 108 | U83: 135 | V83: 149 | W83: 178 | X83: .
G84: kraj | J84: 3369 | K84: 3363 | L84: 4101 | M84: 4415 | N84: 3810 | O84: 3822 | P84: 3745 | Q84: 3638 | R84: 3202 | S84: 3039 | T84: 2373 | U84: 1995 | V84: 1804 | W84: 1736 | X84: .
F85: privátní sektor | J85: 2716 | K85: 3015 | L85: 3704 | M85: 3357 | N85: 3043 | O85: 3544 | P85: 3437 | Q85: 2577 | R85: 2610 | S85: 2265 | T85: 1989 | U85: 1965 | V85: 1994 | W85: 2127 | X85: .
F86: církev | J86: 17 | K86: 0 | L86: 0 | M86: 23 | N86: 0 | O86: 10 | P86: 0 | Q86: 13 | R86: 0 | S86: 16 | T86: 46 | U86: 50 | V86: 77 | W86: 135 | X86: .
X87: Zdroj: databáze MŠMT

Sheet B5.3.5
D4: Tab. B5.3.5: | H4: SŠ – odborné vzdělávání – žáci, nově přijatí a absolventi
D5: ve školním roce 2007/08 až 2017/18 – podle zřizovatele a druhu vzdělávání
D7: Zřizovatel Druh vzdělávání | J7: 2003/04 | K7: 2004/05 | L7: 2005/06 | M7: 2006/07 | N7: 2007/08 | O7: 2008/09 | P7: 2009/10 | Q7: 2010/11 | R7: 2011/12 | S7: 2012/13 | T7: 2013/14 | U7: 2014/15 | V7: 2015/16 | W7: 2016/17 | X7: 2017/18
D12: Žáci
E13: Celkem | J13: 433327 | K13: 435994 | L13: 433000 | M13: 430231 | N13: 422897 | O13: 418305 | P13: 412409 | Q13: 393852 | R13: 366255 | S13: 339741 | T13: 320265 | U13: 307876 | V13: 299062 | W13: 295855 | X13: 291981
E14: v tom | F14: střední vzdělávání | J14: 2829 | K14: 2648 | L14: 2381 | M14: 1988 | N14: 1749 | O14: 1795 | P14: 1917 | Q14: 2107 | R14: 2053 | S14: 1965 | T14: 1965 | U14: 2040 | V14: 2201 | W14: 2404 | X14: 2612
F15: střední vzdělávání s výučním listem1) | J15: 147891 | K15: 142697 | L15: 136603 | M15: 130847 | N15: 123550 | O15: 116401 | P15: 113609 | Q15: 108529 | R15: 103685 | S15: 100558 | T15: 97491 | U15: 94759 | V15: 91841 | W15: 89467 | X15: 87437
F16: střední vzdělávání s maturitní zkouškou1) | J16: 238986 | K16: 245566 | L16: 248761 | M16: 254156 | N16: 254105 | O16: 255050 | P16: 252363 | Q16: 240009 | R16: 224035 | S16: 207052 | T16: 194326 | U16: 188319 | V16: 184583 | W16: 185006 | X16: 185446
F17: nástavbové studium | J17: 43621 | K17: 45083 | L17: 45255 | M17: 43240 | N17: 43493 | O17: 45059 | P17: 44520 | Q17: 43207 | R17: 36482 | S17: 30166 | T17: 26483 | U17: 22758 | V17: 20437 | W17: 18978 | X17: 16486
E18: Veřejný | J18: 366627 | K18: 368272 | L18: 365040 | M18: 361502 | N18: 354333 | O18: 349318 | P18: 343213 | Q18: 329685 | R18: 309116 | S18: 287835 | T18: 271421 | U18: 259919 | V18: 251477 | W18: 247164 | X18: 242815
E19: v tom | F19: střední vzdělávání | J19: 2404 | K19: 2201 | L19: 2080 | M19: 1763 | N19: 1517 | O19: 1561 | P19: 1629 | Q19: 1786 | R19: 1709 | S19: 1626 | T19: 1578 | U19: 1619 | V19: 1714 | W19: 1749 | X19: 1811
F20: střední vzdělávání s výučním listem | J20: 133201 | K20: 128900 | L20: 123449 | M20: 118018 | N20: 111428 | O20: 104919 | P20: 101652 | Q20: 97306 | R20: 93144 | S20: 89932 | T20: 87079 | U20: 84733 | V20: 82060 | W20: 79428 | X20: 77215
F21: střední vzdělávání s maturitní zkouškou | J21: 202027 | K21: 207121 | L21: 209400 | M21: 212667 | N21: 212306 | O21: 212692 | P21: 209835 | Q21: 200348 | R21: 187900 | S21: 173959 | T21: 162794 | U21: 156249 | V21: 152318 | W21: 151691 | X21: 151523
F22: nástavbové studium | J22: 28995 | K22: 30050 | L22: 30111 | M22: 29054 | N22: 29082 | O22: 30146 | P22: 30097 | Q22: 30245 | R22: 26363 | S22: 22318 | T22: 19970 | U22: 17318 | V22: 15385 | W22: 14296 | X22: 12266
E23: Privátní sektor | J23: 64322 | K23: 65364 | L23: 65590 | M23: 66351 | N23: 66182 | O23: 66599 | P23: 66816 | Q23: 61700 | R23: 54667 | S23: 49288 | T23: 46209 | U23: 45241 | V23: 44799 | W23: 45808 | X23: 46254
E24: v tom | F24: střední vzdělávání | J24: 204 | K24: 225 | L24: 173 | M24: 115 | N24: 116 | O24: 121 | P24: 148 | Q24: 160 | R24: 182 | S24: 157 | T24: 178 | U24: 199 | V24: 256 | W24: 396 | X24: 544
F25: střední vzdělávání s výučním listem | J25: 14481 | K25: 13611 | L25: 12873 | M25: 12501 | N25: 11809 | O25: 11181 | P25: 11645 | Q25: 10903 | R25: 10217 | S25: 10287 | T25: 10083 | U25: 9696 | V25: 9475 | W25: 9725 | X25: 9917
F26: střední vzdělávání s maturitní zkouškou | J26: 35047 | K26: 36525 | L26: 37431 | M26: 39579 | N26: 39878 | O26: 40414 | P26: 40630 | Q26: 37705 | R26: 34202 | S26: 31061 | T26: 29493 | U26: 29969 | V26: 30103 | W26: 31089 | X26: 31647
F27: nástavbové studium | J27: 14590 | K27: 15003 | L27: 15113 | M27: 14156 | N27: 14379 | O27: 14883 | P27: 14393 | Q27: 12932 | R27: 10066 | S27: 7783 | T27: 6455 | U27: 5377 | V27: 4965 | W27: 4598 | X27: 4146
E28: Církev | J28: 2378 | K28: 2358 | L28: 2370 | M28: 2378 | N28: 2382 | O28: 2388 | P28: 2380 | Q28: 2467 | R28: 2472 | S28: 2618 | T28: 2635 | U28: 2716 | V28: 2786 | W28: 2883 | X28: 2912
E29: v tom | F29: střední vzdělávání | J29: 221 | K29: 222 | L29: 128 | M29: 110 | N29: 116 | O29: 113 | P29: 140 | Q29: 161 | R29: 162 | S29: 182 | T29: 209 | U29: 222 | V29: 231 | W29: 259 | X29: 257
F30: střední vzdělávání s výučním listem | J30: 209 | K30: 186 | L30: 281 | M30: 328 | N30: 313 | O30: 301 | P30: 312 | Q30: 320 | R30: 324 | S30: 339 | T30: 329 | U30: 330 | V30: 306 | W30: 314 | X30: 305
F31: střední vzdělávání s maturitní zkouškou | J31: 1912 | K31: 1920 | L31: 1930 | M31: 1910 | N31: 1921 | O31: 1944 | P31: 1898 | Q31: 1956 | R31: 1933 | S31: 2032 | T31: 2039 | U31: 2101 | V31: 2162 | W31: 2226 | X31: 2276
F32: nástavbové studium | J32: 36 | K32: 30 | L32: 31 | M32: 30 | N32: 32 | O32: 30 | P32: 30 | Q32: 30 | R32: 53 | S32: 65 | T32: 58 | U32: 63 | V32: 87 | W32: 84 | X32: 74
D33: Nově přijatí
E34: Celkem | J34: 142327 | K34: 140277 | L34: 135266 | M34: 138301 | N34: 134240 | O34: 132280 | P34: 128641 | Q34: 115197 | R34: 105284 | S34: 98643 | T34: 96803 | U34: 94706 | V34: 92491 | W34: 91805 | X34: 90358
E35: v tom | F35: střední vzdělávání | J35: 1571 | K35: 1451 | L35: 1290 | M35: 982 | N35: 911 | O35: 949 | P35: 1010 | Q35: 1097 | R35: 1027 | S35: 987 | T35: 993 | U35: 842 | V35: 943 | W35: 1098 | X35: 1098
F36: střední vzdělávání s výučním listem1) | J36: 51866 | K36: 49808 | L36: 47068 | M36: 46003 | N36: 42619 | O36: 40429 | P36: 40429 | Q36: 35985 | R36: 34926 | S36: 34441 | T36: 33129 | U36: 33029 | V36: 32010 | W36: 31112 | X36: 31376
F37: střední vzdělávání s maturitní zkouškou1) | J37: 65745 | K37: 66229 | L37: 65262 | M37: 70361 | N37: 68299 | O37: 68173 | P37: 65202 | Q37: 56995 | R37: 52643 | S37: 49276 | T37: 49638 | U37: 49673 | V37: 49341 | W37: 49733 | X37: 49824
F38: nástavbové studium | J38: 23145 | K38: 22789 | L38: 21646 | M38: 20955 | N38: 22411 | O38: 22729 | P38: 22000 | Q38: 21120 | R38: 16688 | S38: 13939 | T38: 13043 | U38: 11162 | V38: 10197 | W38: 9862 | X38: 8060
E39: Veřejný | J39: 119601 | K39: 118408 | L39: 114364 | M39: 115273 | N39: 111932 | O39: 110373 | P39: 107311 | Q39: 97274 | R39: 89883 | S39: 83864 | T39: 82110 | U39: 79345 | V39: 77497 | W39: 76236 | X39: 75046
E40: v tom | F40: střední vzdělávání | J40: 1349 | K40: 1204 | L40: 1135 | M40: 848 | N40: 821 | O40: 798 | P40: 862 | Q40: 922 | R40: 842 | S40: 828 | T40: 790 | U40: 648 | V40: 744 | W40: 734 | X40: 730
F41: střední vzdělávání s výučním listem | J41: 46859 | K41: 45249 | L41: 42737 | M41: 41380 | N41: 38488 | O41: 36507 | P41: 36212 | Q41: 32502 | R41: 31481 | S41: 30670 | T41: 29684 | U41: 29444 | V41: 28483 | W41: 27490 | X41: 27599
F42: střední vzdělávání s maturitní zkouškou | J42: 55615 | K42: 55867 | L42: 55223 | M42: 58424 | N42: 57028 | O42: 57063 | P42: 54480 | Q42: 48128 | R42: 44578 | S42: 41542 | T42: 41371 | U42: 40532 | V42: 40408 | W42: 40415 | X42: 40623
F43: nástavbové studium | J43: 15778 | K43: 16088 | L43: 15269 | M43: 14621 | N43: 15595 | O43: 16005 | P43: 15757 | Q43: 15722 | R43: 12982 | S43: 10824 | T43: 10265 | U43: 8721 | V43: 7862 | W43: 7597 | X43: 6094
E44: Privátní sektor | J44: 22020 | K44: 21112 | L44: 20248 | M44: 22308 | N44: 21607 | O44: 21199 | P44: 20643 | Q44: 17148 | R44: 14671 | S44: 13919 | T44: 13899 | U44: 14450 | V44: 14114 | W44: 14647 | X44: 14420
E45: v tom | F45: střední vzdělávání | J45: 103 | K45: 127 | L45: 99 | M45: 73 | N45: 37 | O45: 84 | P45: 80 | Q45: 75 | R45: 96 | S45: 64 | T45: 91 | U45: 85 | V45: 109 | W45: 236 | X45: 273
F46: střední vzdělávání s výučním listem | J46: 4944 | K46: 4498 | L46: 4219 | M46: 4505 | N46: 4020 | O46: 3809 | P46: 4103 | Q46: 3368 | R46: 3337 | S46: 3644 | T46: 3335 | U46: 3476 | V46: 3427 | W46: 3507 | X46: 3683
F47: střední vzdělávání s maturitní zkouškou | J47: 9621 | K47: 9803 | L47: 9567 | M47: 11412 | N47: 10751 | O47: 10598 | P47: 10233 | Q47: 8320 | R47: 7573 | S47: 7134 | T47: 7720 | U47: 8491 | V47: 8296 | W47: 8688 | X47: 8538
F48: nástavbové studium | J48: 7352 | K48: 6684 | L48: 6363 | M48: 6318 | N48: 6799 | O48: 6708 | P48: 6227 | Q48: 5385 | R48: 3665 | S48: 3077 | T48: 2753 | U48: 2398 | V48: 2282 | W48: 2216 | X48: 1926
E49: Církev | J49: 706 | K49: 757 | L49: 654 | M49: 720 | N49: 701 | O49: 708 | P49: 687 | Q49: 775 | R49: 730 | S49: 860 | T49: 794 | U49: 911 | V49: 880 | W49: 922 | X49: 892
E50: v tom | F50: střední vzdělávání | J50: 119 | K50: 120 | L50: 56 | M50: 61 | N50: 53 | O50: 67 | P50: 68 | Q50: 100 | R50: 89 | S50: 95 | T50: 112 | U50: 109 | V50: 90 | W50: 128 | X50: 95
F51: střední vzdělávání s výučním listem | J51: 63 | K51: 61 | L51: 112 | M51: 118 | N51: 111 | O51: 113 | P51: 114 | Q51: 115 | R51: 108 | S51: 127 | T51: 110 | U51: 109 | V51: 100 | W51: 115 | X51: 94
F52: střední vzdělávání s maturitní zkouškou | J52: 509 | K52: 559 | L52: 472 | M52: 525 | N52: 520 | O52: 512 | P52: 489 | Q52: 547 | R52: 492 | S52: 600 | T52: 547 | U52: 650 | V52: 637 | W52: 630 | X52: 663
F53: nástavbové studium | J53: 15 | K53: 17 | L53: 14 | M53: 16 | N53: 17 | O53: 16 | P53: 16 | Q53: 13 | R53: 41 | S53: 38 | T53: 25 | U53: 43 | V53: 53 | W53: 49 | X53: 40
D54: Absolventi
E55: Celkem | J55: 106488 | K55: 107437 | L55: 108484 | M55: 105931 | N55: 101048 | O55: 98450 | P55: 92065 | Q55: 85504 | R55: 82852 | S55: 78279 | T55: 68832 | U55: 63231 | V55: 58106 | W55: 58136 | X55: .
E56: v tom | F56: střední vzdělávání | J56: 823 | K56: 861 | L56: 741 | M56: 676 | N56: 616 | O56: 540 | P56: 498 | Q56: 576 | R56: 650 | S56: 578 | T56: 585 | U56: 583 | V56: 645 | W56: 614 | X56: .
F57: střední vzdělávání s výučním listem1) | J57: 42965 | K57: 41259 | L57: 39003 | M57: 36295 | N57: 34003 | O57: 31552 | P57: 27881 | Q57: 28493 | R57: 27985 | S57: 25433 | T57: 24689 | U57: 23642 | V57: 22095 | W57: 22244 | X57: .
F58: střední vzdělávání s maturitní zkouškou1) | J58: 49790 | K58: 51687 | L58: 54558 | M58: 54929 | N58: 54086 | O58: 53619 | P58: 51876 | Q58: 47462 | R58: 46478 | S58: 45605 | T58: 38496 | U58: 35468 | V58: 32427 | W58: 32554 | X58: .
F59: nástavbové studium | J59: 12910 | K59: 13630 | L59: 14182 | M59: 14031 | N59: 12343 | O59: 12739 | P59: 11810 | Q59: 8973 | R59: 7739 | S59: 6663 | T59: 5062 | U59: 3538 | V59: 2939 | W59: 2724 | X59: .
E60: Veřejný | J60: 90665 | K60: 90986 | L60: 90964 | M60: 88891 | N60: 84747 | O60: 81735 | P60: 76030 | Q60: 72174 | R60: 69977 | S60: 66328 | T60: 58610 | U60: 53871 | V60: 49051 | W60: 48889 | X60: .
E61: v tom | F61: střední vzdělávání | J61: 698 | K61: 752 | L61: 656 | M61: 609 | N61: 510 | O61: 479 | P61: 426 | Q61: 508 | R61: 527 | S61: 471 | T61: 473 | U61: 477 | V61: 508 | W61: 483 | X61: .
F62: střední vzdělávání s výučním listem | J62: 38586 | K62: 37106 | L62: 34998 | M62: 32702 | N62: 30499 | O62: 28024 | P62: 24824 | Q62: 25371 | R62: 25011 | S62: 22692 | T62: 22003 | U62: 20935 | V62: 19606 | W62: 19589 | X62: .
F63: střední vzdělávání s maturitní zkouškou | J63: 42449 | K63: 44003 | L63: 46047 | M63: 46190 | N63: 45392 | O63: 44820 | P63: 43033 | Q63: 40089 | R63: 39268 | S63: 38403 | T63: 32518 | U63: 29826 | V63: 26821 | W63: 26824 | X63: .
F64: nástavbové studium | J64: 8932 | K64: 9125 | L64: 9263 | M64: 9390 | N64: 8346 | O64: 8412 | P64: 7747 | Q64: 6206 | R64: 5171 | S64: 4762 | T64: 3616 | U64: 2633 | V64: 2116 | W64: 1993 | X64: .
E65: Privátní sektor | J65: 15193 | K65: 15957 | L65: 16999 | M65: 16376 | N65: 15748 | O65: 16180 | P65: 15521 | Q65: 12846 | R65: 12365 | S65: 11433 | T65: 9681 | U65: 8889 | V65: 8489 | W65: 8678 | X65: .
E66: v tom | F66: střední vzdělávání | J66: 51 | K66: 65 | L66: 42 | M66: 36 | N66: 65 | O66: 34 | P66: 38 | Q66: 46 | R66: 78 | S66: 54 | T66: 57 | U66: 65 | V66: 75 | W66: 72 | X66: .
F67: střední vzdělávání s výučním listem | J67: 4303 | K67: 4072 | L67: 3948 | M67: 3500 | N67: 3412 | O67: 3443 | P67: 2979 | Q67: 3040 | R67: 2885 | S67: 2641 | T67: 2601 | U67: 2604 | V67: 2389 | W67: 2571 | X67: .
F68: střední vzdělávání s maturitní zkouškou | J68: 6881 | K68: 7327 | L68: 8107 | M68: 8213 | N68: 8289 | O68: 8390 | P68: 8454 | Q68: 7008 | R68: 6844 | S68: 6856 | T68: 5599 | U68: 5328 | V68: 5224 | W68: 5319 | X68: .
F69: nástavbové studium | J69: 3958 | K69: 4493 | L69: 4902 | M69: 4627 | N69: 3982 | O69: 4313 | P69: 4050 | Q69: 2752 | R69: 2558 | S69: 1882 | T69: 1424 | U69: 892 | V69: 801 | W69: 716 | X69: .
E70: Církev | J70: 630 | K70: 494 | L70: 521 | M70: 664 | N70: 553 | O70: 535 | P70: 514 | Q70: 484 | R70: 510 | S70: 518 | T70: 541 | U70: 471 | V70: 566 | W70: 569 | X70: .
E71: v tom | F71: střední vzdělávání | J71: 74 | K71: 44 | L71: 43 | M71: 31 | N71: 41 | O71: 27 | P71: 34 | Q71: 22 | R71: 45 | S71: 53 | T71: 55 | U71: 41 | V71: 62 | W71: 59 | X71: .
F72: střední vzdělávání s výučním listem | J72: 76 | K72: 81 | L72: 57 | M72: 93 | N72: 92 | O72: 85 | P72: 78 | Q72: 82 | R72: 89 | S72: 100 | T72: 85 | U72: 103 | V72: 100 | W72: 84 | X72: .
F73: střední vzdělávání s maturitní zkouškou | J73: 460 | K73: 357 | L73: 404 | M73: 526 | N73: 405 | O73: 409 | P73: 389 | Q73: 365 | R73: 366 | S73: 346 | T73: 379 | U73: 314 | V73: 382 | W73: 411 | X73: .
F74: nástavbové studium | J74: 20 | K74: 12 | L74: 17 | M74: 14 | N74: 15 | O74: 14 | P74: 13 | Q74: 15 | R74: 10 | S74: 19 | T74: 22 | U74: 13 | V74: 22 | W74: 15 | X74: .
D75: Komentáře: | X75: Zdroj: databáze MŠMT
D76: 1) | E76: Údaje za střední vzdělávání s výučním listem a za střední vzdělávání s maturitní zkouškou jsou včetně zkráceného studia, komentář platí pro všechny zřizovatele.

Sheet B5.3.6
D4: Tab. B5.3.6: | H4: SŠ – odborné vzdělávání – dívky, nově přijaté a absolventky
B5: 18 | D5: ve školním roce 2007/08 až 2017/18 – podle zřizovatele a druhu vzdělávání
D7: Zřizovatel Druh vzdělávání | J7: 2003/04 | K7: 2004/05 | L7: 2005/06 | M7: 2006/07 | N7: 2007/08 | O7: 2008/09 | P7: 2009/10 | Q7: 2010/11 | R7: 2011/12 | S7: 2012/13 | T7: 2013/14 | U7: 2014/15 | V7: 2015/16 | W7: 2016/17 | X7: 2017/18
D12: Dívky
E13: Celkem | J13: 199029 | K13: 202086 | L13: 201481 | M13: 200664 | N13: 197142 | O13: 195346 | P13: 191298 | Q13: 181898 | R13: 169331 | S13: 157174 | T13: 147503 | U13: 142218 | V13: 137770 | W13: 135823 | X13: 133969
E14: v tom | F14: střední vzdělávání | J14: 1516 | K14: 1391 | L14: 1127 | M14: 1062 | N14: 928 | O14: 906 | P14: 974 | Q14: 1039 | R14: 1008 | S14: 938 | T14: 938 | U14: 929 | V14: 994 | W14: 1117 | X14: 1237
F15: střední vzdělávání s výučním listem1) | J15: 51618 | K15: 49963 | L15: 48148 | M15: 46472 | N15: 43189 | O15: 40248 | P15: 38324 | Q15: 36139 | R15: 34492 | S15: 33579 | T15: 32847 | U15: 32481 | V15: 31799 | W15: 30794 | X15: 29856
F16: střední vzdělávání s maturitní zkouškou1) | J16: 128804 | K16: 132101 | L16: 133046 | M16: 134586 | N16: 133863 | O16: 133711 | P16: 131656 | Q16: 125175 | R16: 117214 | S16: 108659 | T16: 101746 | U16: 98508 | V16: 95935 | W16: 95676 | X16: 95576
F17: nástavbové studium | J17: 17091 | K17: 18631 | L17: 19160 | M17: 18544 | N17: 19162 | O17: 20481 | P17: 20344 | Q17: 19545 | R17: 16617 | S17: 13998 | T17: 11972 | U17: 10300 | V17: 9042 | W17: 8236 | X17: 7300
E18: Veřejný | J18: 162760 | K18: 164584 | L18: 163502 | M18: 162060 | N18: 158523 | O18: 156488 | P18: 153493 | Q18: 147354 | R18: 138810 | S18: 129499 | T18: 121364 | U18: 115861 | V18: 111549 | W18: 109088 | X18: 106876
E19: v tom | F19: střední vzdělávání | J19: 1192 | K19: 1057 | L19: 939 | M19: 921 | N19: 767 | O19: 749 | P19: 777 | Q19: 825 | R19: 781 | S19: 709 | T19: 679 | U19: 674 | V19: 707 | W19: 746 | X19: 811
F20: střední vzdělávání s výučním listem | J20: 45486 | K20: 44212 | L20: 42431 | M20: 40731 | N20: 37692 | O20: 35000 | P20: 33147 | Q20: 31333 | R20: 29945 | S20: 29186 | T20: 28488 | U20: 28120 | V20: 27538 | W20: 26463 | X20: 25513
F21: střední vzdělávání s maturitní zkouškou | J21: 105614 | K21: 107938 | L21: 108443 | M21: 108811 | N21: 107992 | O21: 107694 | P21: 106198 | Q21: 101763 | R21: 96121 | S21: 89352 | T21: 83325 | U21: 79344 | V21: 76553 | W21: 75811 | X21: 75310
F22: nástavbové studium | J22: 10468 | K22: 11377 | L22: 11689 | M22: 11597 | N22: 12072 | O22: 13045 | P22: 13371 | Q22: 13433 | R22: 11963 | S22: 10252 | T22: 8872 | U22: 7723 | V22: 6751 | W22: 6068 | X22: 5242
E23: Privátní sektor | J23: 34189 | K23: 35438 | L23: 35924 | M23: 36559 | N23: 36552 | O23: 36805 | P23: 35755 | Q23: 32425 | R23: 28384 | S23: 25394 | T23: 23838 | U23: 24003 | V23: 23810 | W23: 24273 | X23: 24618
E24: v tom | F24: střední vzdělávání | J24: 120 | K24: 127 | L24: 63 | M24: 44 | N24: 53 | O24: 59 | P24: 72 | Q24: 82 | R24: 104 | S24: 88 | T24: 101 | U24: 105 | V24: 140 | W24: 211 | X24: 270
F25: střední vzdělávání s výučním listem | J25: 5999 | K25: 5626 | L25: 5518 | M25: 5506 | N25: 5268 | O25: 5029 | P25: 4940 | Q25: 4564 | R25: 4290 | S25: 4119 | T25: 4093 | U25: 4086 | V25: 4002 | W25: 4068 | X25: 4089
F26: střední vzdělávání s maturitní zkouškou | J26: 21477 | K26: 22457 | L26: 22898 | M26: 24082 | N26: 24159 | O26: 24297 | P26: 23787 | Q26: 21689 | R26: 19382 | S26: 17498 | T26: 16594 | U26: 17286 | V26: 17449 | W26: 17898 | X26: 18262
F27: nástavbové studium | J27: 6593 | K27: 7228 | L27: 7445 | M27: 6927 | N27: 7072 | O27: 7420 | P27: 6956 | Q27: 6090 | R27: 4608 | S27: 3689 | T27: 3050 | U27: 2526 | V27: 2219 | W27: 2096 | X27: 1997
E28: Církev | J28: 2080 | K28: 2064 | L28: 2055 | M28: 6229 | N28: 6391 | O28: 2053 | P28: 2050 | Q28: 2119 | R28: 2137 | S28: 2281 | T28: 2301 | U28: 2354 | V28: 2411 | W28: 2462 | X28: 2475
E29: v tom | F29: střední vzdělávání | J29: 204 | K29: 207 | L29: 125 | M29: 97 | N29: 108 | O29: 98 | P29: 125 | Q29: 132 | R29: 123 | S29: 141 | T29: 158 | U29: 150 | V29: 147 | W29: 160 | X29: 156
F30: střední vzdělávání s výučním listem | J30: 133 | K30: 125 | L30: 199 | M30: 235 | N30: 229 | O30: 219 | P30: 237 | Q30: 242 | R30: 257 | S30: 274 | T30: 266 | U30: 275 | V30: 259 | W30: 263 | X30: 254
F31: střední vzdělávání s maturitní zkouškou | J31: 1713 | K31: 1706 | L31: 1705 | M31: 5877 | N31: 6036 | O31: 1720 | P31: 1671 | Q31: 1723 | R31: 1711 | S31: 1809 | T31: 1827 | U31: 1878 | V31: 1933 | W31: 1967 | X31: 2004
F32: nástavbové studium | J32: 30 | K32: 26 | L32: 26 | M32: 20 | N32: 18 | O32: 16 | P32: 17 | Q32: 22 | R32: 46 | S32: 57 | T32: 50 | U32: 51 | V32: 72 | W32: 72 | X32: 61
D33: Nově přijaté
E34: Celkem | J34: 62876 | K34: 63141 | L34: 60707 | M34: 62318 | N34: 60176 | O34: 59792 | P34: 57523 | Q34: 51456 | R34: 47582 | S34: 44434 | T34: 43676 | U34: 43266 | V34: 41566 | W34: 41278 | X34: 41086
E35: v tom | F35: střední vzdělávání | J35: 757 | K35: 697 | L35: 543 | M35: 529 | N35: 492 | O35: 470 | P35: 528 | Q35: 547 | R35: 509 | S35: 462 | T35: 479 | U35: 381 | V35: 432 | W35: 533 | X35: 532
F36: střední vzdělávání s výučním listem1) | J36: 18384 | K36: 17996 | L36: 16881 | M36: 16762 | N36: 14965 | O36: 14074 | P36: 13879 | Q36: 12339 | R36: 12271 | S36: 12024 | T36: 11697 | U36: 12127 | V36: 11519 | W36: 10861 | X36: 11086
F37: střední vzdělávání s maturitní zkouškou1) | J37: 34990 | K37: 35268 | L37: 34570 | M37: 36503 | N37: 35194 | O37: 35285 | P37: 33836 | Q37: 29673 | R37: 27496 | S37: 25953 | T37: 26047 | U37: 25970 | V37: 25353 | W37: 25721 | X37: 25991
F38: nástavbové studium | J38: 8745 | K38: 9180 | L38: 8713 | M38: 8524 | N38: 9525 | O38: 9963 | P38: 9280 | Q38: 8897 | R38: 7306 | S38: 5995 | T38: 5453 | U38: 4788 | V38: 4262 | W38: 4163 | X38: 3477
E39: Veřejný | J39: 51094 | K39: 51199 | L39: 49410 | M39: 49771 | N39: 48054 | O39: 47906 | P39: 46555 | Q39: 42390 | R39: 39698 | S39: 36698 | T39: 35912 | U39: 34729 | V39: 33443 | W39: 32810 | X39: 32606
E40: v tom | F40: střední vzdělávání | J40: 603 | K40: 521 | L40: 461 | M40: 453 | N40: 420 | O40: 369 | P40: 425 | Q40: 430 | R40: 387 | S40: 353 | T40: 341 | U40: 272 | V40: 306 | W40: 329 | X40: 339
F41: střední vzdělávání s výučním listem | J41: 16290 | K41: 16053 | L41: 14970 | M41: 14605 | N41: 13039 | O41: 12315 | P41: 11980 | Q41: 10809 | R41: 10758 | S41: 10451 | T41: 10288 | U41: 10507 | V41: 9965 | W41: 9322 | X41: 9504
F42: střední vzdělávání s maturitní zkouškou | J42: 28683 | K42: 28688 | L42: 28324 | M42: 29079 | N42: 28353 | O42: 28538 | P42: 27604 | Q42: 24570 | R42: 22885 | S42: 21305 | T42: 21045 | U42: 20250 | V42: 19889 | W42: 20037 | X42: 20256
F43: nástavbové studium | J43: 5518 | K43: 5937 | L43: 5655 | M43: 5634 | N43: 6242 | O43: 6684 | P43: 6546 | Q43: 6581 | R43: 5668 | S43: 4589 | T43: 4238 | U43: 3700 | V43: 3283 | W43: 3122 | X43: 2507
E44: Privátní sektor | J44: 11154 | K44: 11283 | L44: 10737 | M44: 11940 | N44: 11504 | O44: 11301 | P44: 10388 | Q44: 8404 | R44: 7248 | S44: 6994 | T44: 7074 | U44: 7758 | V44: 7370 | W44: 7702 | X44: 7732
E45: v tom | F45: střední vzdělávání | J45: 41 | K45: 64 | L45: 27 | M45: 26 | N45: 20 | O45: 44 | P45: 42 | Q45: 41 | R45: 58 | S45: 33 | T45: 55 | U45: 38 | V45: 72 | W45: 122 | X45: 133
F46: střední vzdělávání s výučním listem | J46: 2051 | K46: 1900 | L46: 1836 | M46: 2071 | N46: 1834 | O46: 1684 | P46: 1806 | Q46: 1437 | R46: 1427 | S46: 1473 | T46: 1319 | U46: 1528 | V46: 1473 | W46: 1443 | X46: 1509
F47: střední vzdělávání s maturitní zkouškou | J47: 5848 | K47: 6091 | L47: 5827 | M47: 6962 | N47: 6377 | O47: 6301 | P47: 5817 | Q47: 4621 | R47: 4161 | S47: 4115 | T47: 4507 | U47: 5138 | V47: 4892 | W47: 5136 | X47: 5155
F48: nástavbové studium | J48: 3214 | K48: 3228 | L48: 3047 | M48: 2881 | N48: 3273 | O48: 3272 | P48: 2723 | Q48: 2305 | R48: 1602 | S48: 1373 | T48: 1193 | U48: 1054 | V48: 933 | W48: 1001 | X48: 935
E49: Církev | J49: 628 | K49: 659 | L49: 560 | M49: 607 | N49: 618 | O49: 585 | P49: 580 | Q49: 662 | R49: 636 | S49: 742 | T49: 690 | U49: 779 | V49: 753 | W49: 766 | X49: 748
E50: v tom | F50: střední vzdělávání | J50: 113 | K50: 112 | L50: 55 | M50: 50 | N50: 52 | O50: 57 | P50: 61 | Q50: 76 | R50: 64 | S50: 76 | T50: 83 | U50: 71 | V50: 54 | W50: 82 | X50: 60
F51: střední vzdělávání s výučním listem | J51: 43 | K51: 43 | L51: 75 | M51: 86 | N51: 92 | O51: 75 | P51: 93 | Q51: 93 | R51: 86 | S51: 100 | T51: 90 | U51: 92 | V51: 81 | W51: 96 | X51: 73
F52: střední vzdělávání s maturitní zkouškou | J52: 459 | K52: 489 | L52: 419 | M52: 462 | N52: 464 | O52: 446 | P52: 415 | Q52: 482 | R52: 450 | S52: 533 | T52: 495 | U52: 582 | V52: 572 | W52: 548 | X52: 580
F53: nástavbové studium | J53: 13 | K53: 15 | L53: 11 | M53: 9 | N53: 10 | O53: 7 | P53: 11 | Q53: 11 | R53: 36 | S53: 33 | T53: 22 | U53: 34 | V53: 46 | W53: 40 | X53: 35
D54: Absolventky
E55: Celkem | J55: 48493 | K55: 49190 | L55: 50272 | M55: 49586 | N55: 47140 | O55: 46666 | P55: 43595 | Q55: 38769 | R55: 37860 | S55: 36295 | T55: 31368 | U55: 28921 | V55: 26498 | W55: 26783 | X55: .
E56: v tom | F56: střední vzdělávání | J56: 453 | K56: 439 | L56: 329 | M56: 369 | N56: 356 | O56: 293 | P56: 270 | Q56: 297 | R56: 348 | S56: 288 | T56: 306 | U56: 282 | V56: 292 | W56: 270 | X56: .
F57: střední vzdělávání s výučním listem1) | J57: 15279 | K57: 14406 | L57: 13809 | M57: 13047 | N57: 11989 | O57: 11262 | P57: 9634 | Q57: 9646 | R57: 9138 | S57: 8278 | T57: 8233 | U57: 7811 | V57: 7380 | W57: 7752 | X57: .
F58: střední vzdělávání s maturitní zkouškou1) | J58: 27458 | K58: 28623 | L58: 29942 | M58: 29859 | N58: 29312 | O58: 29278 | P58: 28037 | Q58: 24639 | R58: 24857 | S58: 24522 | T58: 20502 | U58: 19291 | V58: 17557 | W58: 17637 | X58: .
F59: nástavbové studium | J59: 5303 | K59: 5722 | L59: 6192 | M59: 6311 | N59: 5483 | O59: 5833 | P59: 5654 | Q59: 4187 | R59: 3517 | S59: 3207 | T59: 2327 | U59: 1537 | V59: 1269 | W59: 1124 | X59: .
E60: Veřejný | J60: 39708 | K60: 40203 | L60: 40628 | M60: 39942 | N60: 38042 | O60: 37439 | P60: 34565 | Q60: 31542 | R60: 30746 | S60: 29824 | T60: 25806 | U60: 23740 | V60: 21337 | W60: 21475 | X60: .
E61: v tom | F61: střední vzdělávání | J61: 360 | K61: 363 | L61: 272 | M61: 326 | N61: 285 | O61: 251 | P61: 219 | Q61: 258 | R61: 266 | S61: 214 | T61: 229 | U61: 210 | V61: 210 | W61: 193 | X61: .
F62: střední vzdělávání s výučním listem | J62: 13367 | K62: 12637 | L62: 12067 | M62: 11405 | N62: 10477 | O62: 9715 | P62: 8299 | Q62: 8318 | R62: 7830 | S62: 7183 | T62: 7105 | U62: 6658 | V62: 6357 | W62: 6606 | X62: .
F63: střední vzdělávání s maturitní zkouškou | J63: 22633 | K63: 23690 | L63: 24570 | M63: 24332 | N63: 23801 | O63: 23855 | P63: 22491 | Q63: 20235 | R63: 20381 | S63: 20185 | T63: 16880 | U63: 15768 | V63: 13874 | W63: 13899 | X63: .
F64: nástavbové studium | J64: 3348 | K64: 3513 | L64: 3719 | M64: 3879 | N64: 3479 | O64: 3618 | P64: 3556 | Q64: 2731 | R64: 2269 | S64: 2242 | T64: 1592 | U64: 1104 | V64: 896 | W64: 777 | X64: .
E65: Privátní sektor | J65: 8243 | K65: 8550 | L65: 9171 | M65: 9061 | N65: 8638 | O65: 8767 | P65: 8577 | Q65: 6808 | R65: 6668 | S65: 6025 | T65: 5090 | U65: 4766 | V65: 4666 | W65: 4803 | X65: .
E66: v tom | F66: střední vzdělávání | J66: 29 | K66: 37 | L66: 16 | M66: 16 | N66: 31 | O66: 18 | P66: 20 | Q66: 19 | R66: 46 | S66: 34 | T66: 33 | U66: 38 | V66: 36 | W66: 40 | X66: .
F67: střední vzdělávání s výučním listem | J67: 1867 | K67: 1711 | L67: 1697 | M67: 1572 | N67: 1451 | O67: 1486 | P67: 1273 | Q67: 1267 | R67: 1236 | S67: 1011 | T67: 1062 | U67: 1069 | V67: 938 | W67: 1071 | X67: .
F68: střední vzdělávání s maturitní zkouškou | J68: 4408 | K68: 4604 | L68: 5000 | M68: 5052 | N68: 5160 | O68: 5057 | P68: 5192 | Q68: 4075 | R68: 4146 | S68: 4031 | T68: 3277 | U68: 3238 | V68: 3334 | W68: 3359 | X68: .
F69: nástavbové studium | J69: 1939 | K69: 2198 | L69: 2458 | M69: 2421 | N69: 1996 | O69: 2206 | P69: 2092 | Q69: 1447 | R69: 1240 | S69: 949 | T69: 718 | U69: 421 | V69: 358 | W69: 333 | X69: .
E70: Církev | J70: 542 | K70: 437 | L70: 473 | M70: 583 | N70: 460 | O70: 460 | P70: 453 | Q70: 419 | R70: 446 | S70: 446 | T70: 472 | U70: 415 | V70: 495 | W70: 505 | X70: .
E71: v tom | F71: střední vzdělávání | J71: 64 | K71: 39 | L71: 41 | M71: 27 | N71: 40 | O71: 24 | P71: 31 | Q71: 20 | R71: 36 | S71: 40 | T71: 44 | U71: 34 | V71: 46 | W71: 37 | X71: .
F72: střední vzdělávání s výučním listem | J72: 45 | K72: 58 | L72: 45 | M72: 70 | N72: 61 | O72: 61 | P72: 62 | Q72: 61 | R72: 72 | S72: 84 | T72: 66 | U72: 84 | V72: 85 | W72: 75 | X72: .
F73: střední vzdělávání s maturitní zkouškou | J73: 417 | K73: 329 | L73: 372 | M73: 475 | N73: 351 | O73: 366 | P73: 354 | Q73: 329 | R73: 330 | S73: 306 | T73: 345 | U73: 285 | V73: 349 | W73: 379 | X73: .
F74: nástavbové studium | J74: 16 | K74: 11 | L74: 15 | M74: 11 | N74: 8 | O74: 9 | P74: 6 | Q74: 9 | R74: 8 | S74: 16 | T74: 17 | U74: 12 | V74: 15 | W74: 14 | X74: .
D75: Komentáře: | X75: Zdroj: databáze MŠMT
D76: 1) | E76: Údaje za střední vzdělávání s výučním listem a za střední vzdělávání s maturitní zkouškou jsou včetně zkráceného studia, komentář platí pro všechny zřizovatele.

Sheet B5.3.7
D4: Tab. B5.3.7: | H4: SŠ – odborné vzdělávání, denní forma vzdělávání – žáci, nově
B5: 18 | D5: přijatí a absolventi ve školním roce 2007/08 až 2017/18 – podle zřizovatele a druhu vzdělávání
D7: Zřizovatel Druh vzdělávání | J7: 2003/04 | K7: 2004/05 | L7: 2005/06 | M7: 2006/07 | N7: 2007/08 | O7: 2008/09 | P7: 2009/10 | Q7: 2010/11 | R7: 2011/12 | S7: 2012/13 | T7: 2013/14 | U7: 2014/15 | V7: 2015/16 | W7: 2016/17 | X7: 2017/18
D12: Žáci
E13: Celkem | J13: 400488 | K13: 400940 | L13: 398269 | M13: 396320 | N13: 388493 | O13: 382001 | P13: 376566 | Q13: 358809 | R13: 336005 | S13: 313334 | T13: 295863 | U13: 285327 | V13: 277988 | W13: 275466 | X13: 273811
E14: v tom | F14: střední vzdělávání | J14: 2790 | K14: 2586 | L14: 2296 | M14: 1852 | N14: 1692 | O14: 1675 | P14: 1802 | Q14: 1962 | R14: 1966 | S14: 1940 | T14: 1933 | U14: 2000 | V14: 2162 | W14: 2369 | X14: 2579
F15: střední vzdělávání s výučním listem1) | J15: 146509 | K15: 141058 | L15: 135162 | M15: 129567 | N15: 122135 | O15: 115063 | P15: 112230 | Q15: 107036 | R15: 102184 | S15: 98892 | T15: 95555 | U15: 92759 | V15: 89654 | W15: 86964 | X15: 84864
F16: střední vzdělávání s maturitní zkouškou1) | J16: 229651 | K16: 235798 | L16: 239392 | M16: 244179 | N16: 244434 | O16: 245416 | P16: 242835 | Q16: 230552 | R16: 215012 | S16: 198145 | T16: 185413 | U16: 179201 | V16: 175916 | W16: 176388 | X16: 177284
F17: nástavbové studium | J17: 21538 | K17: 21498 | L17: 21419 | M17: 20722 | N17: 20232 | O17: 19847 | P17: 19699 | Q17: 19259 | R17: 16843 | S17: 14357 | T17: 12962 | U17: 11367 | V17: 10256 | W17: 9745 | X17: 9084
E18: Veřejný | J18: 346820 | K18: 346801 | L18: 344009 | M18: 341232 | N18: 334053 | O18: 328179 | P18: 322447 | Q18: 308942 | R18: 290976 | S18: 271825 | T18: 256559 | U18: 246941 | V18: 239673 | W18: 236339 | X18: 233832
E19: v tom | F19: střední vzdělávání | J19: 2369 | K19: 2161 | L19: 2020 | M19: 1627 | N19: 1460 | O19: 1441 | P19: 1514 | Q19: 1656 | R19: 1651 | S19: 1626 | T19: 1578 | U19: 1619 | V19: 1714 | W19: 1749 | X19: 1811
F20: střední vzdělávání s výučním listem | J20: 132388 | K20: 127863 | L20: 122598 | M20: 117302 | N20: 110582 | O20: 104091 | P20: 100801 | Q20: 96380 | R20: 92146 | S20: 88899 | T20: 85850 | U20: 83463 | V20: 80666 | W20: 77877 | X20: 75613
F21: střední vzdělávání s maturitní zkouškou | J21: 195225 | K21: 200135 | L21: 202880 | M21: 206229 | N21: 206063 | O21: 206744 | P21: 204013 | Q21: 194795 | R21: 182662 | S21: 169002 | T21: 157956 | U21: 152025 | V21: 148400 | W21: 148233 | X21: 148503
F22: nástavbové studium | J22: 16838 | K22: 16642 | L22: 16511 | M22: 16074 | N22: 15948 | O22: 15903 | P22: 16119 | Q22: 16111 | R22: 14517 | S22: 12298 | T22: 11175 | U22: 9834 | V22: 8893 | W22: 8480 | X22: 7905
E23: Privátní sektor | J23: 51346 | K23: 51847 | L23: 51943 | M23: 52798 | N23: 52112 | O23: 51518 | P23: 51789 | Q23: 47485 | R23: 42664 | S23: 39107 | T23: 36914 | U23: 35988 | V23: 35863 | W23: 36596 | X23: 37353
E24: v tom | F24: střední vzdělávání | J24: 200 | K24: 203 | L24: 148 | M24: 115 | N24: 116 | O24: 121 | P24: 148 | Q24: 145 | R24: 153 | S24: 132 | T24: 146 | U24: 159 | V24: 217 | W24: 361 | X24: 511
F25: střední vzdělávání s výučním listem | J25: 13912 | K25: 13009 | L25: 12283 | M25: 11937 | N25: 11240 | O25: 10671 | P25: 11117 | Q25: 10336 | R25: 9714 | S25: 9654 | T25: 9376 | U25: 8966 | V25: 8682 | W25: 8792 | X25: 8963
F26: střední vzdělávání s maturitní zkouškou | J26: 32570 | K26: 33809 | L26: 34635 | M26: 36128 | N26: 36504 | O26: 36812 | P26: 36974 | Q26: 33886 | R26: 30524 | S26: 27327 | T26: 25663 | U26: 25393 | V26: 25688 | W26: 26262 | X26: 26774
F27: nástavbové studium | J27: 4664 | K27: 4826 | L27: 4877 | M27: 4618 | N27: 4252 | O27: 3914 | P27: 3550 | Q27: 3118 | R27: 2273 | S27: 1994 | T27: 1729 | U27: 1470 | V27: 1276 | W27: 1181 | X27: 1105
E28: Církev | J28: 2322 | K28: 2292 | L28: 2317 | M28: 2290 | N28: 2328 | O28: 2304 | P28: 2330 | Q28: 2382 | R28: 2365 | S28: 2402 | T28: 2390 | U28: 2398 | V28: 2452 | W28: 2531 | X28: 2626
E29: v tom | F29: střední vzdělávání | J29: 221 | K29: 222 | L29: 128 | M29: 110 | N29: 116 | O29: 113 | P29: 140 | Q29: 161 | R29: 162 | S29: 182 | T29: 209 | U29: 222 | V29: 231 | W29: 259 | X29: 257
F30: střední vzdělávání s výučním listem | J30: 209 | K30: 186 | L30: 281 | M30: 328 | N30: 313 | O30: 301 | P30: 312 | Q30: 320 | R30: 324 | S30: 339 | T30: 329 | U30: 330 | V30: 306 | W30: 295 | X30: 288
F31: střední vzdělávání s maturitní zkouškou | J31: 1856 | K31: 1854 | L31: 1877 | M31: 1822 | N31: 1867 | O31: 1860 | P31: 1848 | Q31: 1871 | R31: 1826 | S31: 1816 | T31: 1794 | U31: 1783 | V31: 1828 | W31: 1893 | X31: 2007
F32: nástavbové studium | J32: 36 | K32: 30 | L32: 31 | M32: 30 | N32: 32 | O32: 30 | P32: 30 | Q32: 30 | R32: 53 | S32: 65 | T32: 58 | U32: 63 | V32: 87 | W32: 84 | X32: 74
D33: Nově přijatí
E34: Celkem | J34: 127619 | K34: 125246 | L34: 122311 | M34: 124669 | N34: 119675 | O34: 116788 | P34: 114585 | Q34: 101232 | R34: 94387 | S34: 89116 | T34: 87261 | U34: 86170 | V34: 84531 | W34: 83645 | X34: 83675
E35: v tom | F35: střední vzdělávání | J35: 1559 | K35: 1411 | L35: 1243 | M35: 905 | N35: 881 | O35: 883 | P35: 943 | Q35: 1010 | R35: 1007 | S35: 978 | T35: 971 | U35: 826 | V35: 922 | W35: 1078 | X35: 1082
F36: střední vzdělávání s výučním listem1) | J36: 51338 | K36: 49040 | L36: 46507 | M36: 45488 | N36: 42093 | O36: 39898 | P36: 39906 | Q36: 35434 | R36: 34304 | S36: 33818 | T36: 32433 | U36: 32237 | V36: 31173 | W36: 30177 | X36: 30328
F37: střední vzdělávání s maturitní zkouškou1) | J37: 62778 | K37: 63138 | L37: 62838 | M37: 67102 | N37: 65295 | O37: 65099 | P37: 62422 | Q37: 54187 | R37: 49902 | S37: 46529 | T37: 46821 | U37: 46811 | V37: 46634 | W37: 46946 | X37: 47155
F38: nástavbové studium | J38: 11944 | K38: 11657 | L38: 11723 | M38: 11174 | N38: 11406 | O38: 10908 | P38: 11314 | Q38: 10601 | R38: 9174 | S38: 7791 | T38: 7036 | U38: 6296 | V38: 5802 | W38: 5444 | X38: 5110
E39: Veřejný | J39: 110344 | K39: 108427 | L39: 105958 | M39: 106872 | N39: 102925 | O39: 100757 | P39: 98755 | Q39: 88475 | R39: 82904 | S39: 77603 | T39: 75890 | U39: 74345 | V39: 72827 | W39: 71722 | X39: 71720
E40: v tom | F40: střední vzdělávání | J40: 1337 | K40: 1179 | L40: 1088 | M40: 771 | N40: 791 | O40: 732 | P40: 795 | Q40: 850 | R40: 842 | S40: 828 | T40: 790 | U40: 648 | V40: 744 | W40: 734 | X40: 730
F41: střední vzdělávání s výučním listem | J41: 46476 | K41: 44652 | L41: 42319 | M41: 41045 | N41: 38108 | O41: 36119 | P41: 35890 | Q41: 32095 | R41: 31052 | S41: 30300 | T41: 29210 | U41: 28899 | V41: 27931 | W41: 26872 | X41: 26893
F42: střední vzdělávání s maturitní zkouškou | J42: 53299 | K42: 53520 | L42: 53418 | M42: 56286 | N42: 54961 | O42: 55011 | P42: 52709 | Q42: 46504 | R42: 42954 | S42: 39828 | T42: 39700 | U42: 39328 | V42: 39074 | W42: 39348 | X42: 39637
F43: nástavbové studium | J43: 9232 | K43: 9076 | L43: 9133 | M43: 8770 | N43: 9065 | O43: 8895 | P43: 9361 | Q43: 9026 | R43: 8056 | S43: 6647 | T43: 6190 | U43: 5470 | V43: 5078 | W43: 4768 | X43: 4460
E44: Privátní sektor | J44: 16569 | K44: 16098 | L44: 15699 | M44: 17111 | N44: 16049 | O44: 15359 | P44: 15143 | Q44: 12023 | R44: 10814 | S44: 10776 | T44: 10663 | U44: 11049 | V44: 10954 | W44: 11120 | X44: 11173
E45: v tom | F45: střední vzdělávání | J45: 103 | K45: 112 | L45: 99 | M45: 73 | N45: 37 | O45: 84 | P45: 80 | Q45: 60 | R45: 76 | S45: 55 | T45: 69 | U45: 69 | V45: 88 | W45: 216 | X45: 257
F46: střední vzdělávání s výučním listem | J46: 4799 | K46: 4327 | L46: 4076 | M46: 4325 | N46: 3874 | O46: 3666 | P46: 3902 | Q46: 3224 | R46: 3144 | S46: 3391 | T46: 3113 | U46: 3229 | V46: 3142 | W46: 3209 | X46: 3341
F47: střední vzdělávání s maturitní zkouškou | J47: 8970 | K47: 9095 | L47: 8948 | M47: 10325 | N47: 9814 | O47: 9612 | P47: 9224 | Q47: 7177 | R47: 6517 | S47: 6224 | T47: 6660 | U47: 6968 | V47: 7053 | W47: 7068 | X47: 6965
F48: nástavbové studium | J48: 2697 | K48: 2564 | L48: 2576 | M48: 2388 | N48: 2324 | O48: 1997 | P48: 1937 | Q48: 1562 | R48: 1077 | S48: 1106 | T48: 821 | U48: 783 | V48: 671 | W48: 627 | X48: 610
E49: Církev | J49: 706 | K49: 721 | L49: 654 | M49: 686 | N49: 701 | O49: 672 | P49: 687 | Q49: 734 | R49: 669 | S49: 737 | T49: 708 | U49: 776 | V49: 750 | W49: 803 | X49: 782
E50: v tom | F50: střední vzdělávání | J50: 119 | K50: 120 | L50: 56 | M50: 61 | N50: 53 | O50: 67 | P50: 68 | Q50: 100 | R50: 89 | S50: 95 | T50: 112 | U50: 109 | V50: 90 | W50: 128 | X50: 95
F51: střední vzdělávání s výučním listem | J51: 63 | K51: 61 | L51: 112 | M51: 118 | N51: 111 | O51: 113 | P51: 114 | Q51: 115 | R51: 108 | S51: 127 | T51: 110 | U51: 109 | V51: 100 | W51: 96 | X51: 94
F52: střední vzdělávání s maturitní zkouškou | J52: 509 | K52: 523 | L52: 472 | M52: 491 | N52: 520 | O52: 476 | P52: 489 | Q52: 506 | R52: 431 | S52: 477 | T52: 461 | U52: 515 | V52: 507 | W52: 530 | X52: 553
F53: nástavbové studium | J53: 15 | K53: 17 | L53: 14 | M53: 16 | N53: 17 | O53: 16 | P53: 16 | Q53: 13 | R53: 41 | S53: 38 | T53: 25 | U53: 43 | V53: 53 | W53: 49 | X53: 40
D54: Absolventi
E55: Celkem | J55: 100209 | K55: 100961 | L55: 100632 | M55: 98046 | N55: 94136 | O55: 91007 | P55: 84882 | Q55: 79208 | R55: 76919 | S55: 72902 | T55: 64316 | U55: 59086 | V55: 54082 | W55: 53960 | X55: .
E56: v tom | F56: střední vzdělávání | J56: 810 | K56: 852 | L56: 717 | M56: 653 | N56: 558 | O56: 522 | P56: 458 | Q56: 530 | R56: 586 | S56: 567 | T56: 578 | U56: 569 | V56: 632 | W56: 604 | X56: .
F57: střední vzdělávání s výučním listem1) | J57: 42430 | K57: 40752 | L57: 38559 | M57: 35822 | N57: 33547 | O57: 31082 | P57: 27558 | Q57: 27972 | R57: 27531 | S57: 24994 | T57: 24080 | U57: 22929 | V57: 21335 | W57: 21304 | X57: .
F58: střední vzdělávání s maturitní zkouškou1) | J58: 48637 | K58: 50542 | L58: 53083 | M58: 53429 | N58: 52662 | O58: 52137 | P58: 50614 | Q58: 46287 | R58: 45112 | S58: 44103 | T58: 36955 | U58: 33613 | V58: 30561 | W58: 30407 | X58: .
F59: nástavbové studium | J59: 8332 | K59: 8815 | L59: 8273 | M59: 8142 | N59: 7369 | O59: 7266 | P59: 6252 | Q59: 4419 | R59: 3690 | S59: 3238 | T59: 2703 | U59: 1975 | V59: 1554 | W59: 1645 | X59: .
E60: Veřejný | J60: 87119 | K60: 87525 | L60: 86816 | M60: 84386 | N60: 80878 | O60: 77846 | P60: 72284 | Q60: 68468 | R60: 66654 | S60: 63232 | T60: 56129 | U60: 51741 | V60: 47098 | W60: 46975 | X60: .
E61: v tom | F61: střední vzdělávání | J61: 685 | K61: 743 | L61: 632 | M61: 586 | N61: 452 | O61: 461 | P61: 386 | Q61: 462 | R61: 472 | S61: 471 | T61: 473 | U61: 477 | V61: 508 | W61: 483 | X61: .
F62: střední vzdělávání s výučním listem | J62: 38236 | K62: 36803 | L62: 34806 | M62: 32378 | N62: 30223 | O62: 27740 | P62: 24674 | Q62: 25078 | R62: 24701 | S62: 22389 | T62: 21603 | U62: 20464 | V62: 19065 | W62: 18928 | X62: .
F63: střední vzdělávání s maturitní zkouškou | J63: 41611 | K63: 43231 | L63: 45131 | M63: 45245 | N63: 44482 | O63: 43987 | P63: 42287 | Q63: 39284 | R63: 38422 | S63: 37595 | T63: 31812 | U63: 29066 | V63: 26224 | W63: 26154 | X63: .
F64: nástavbové studium | J64: 6587 | K64: 6748 | L64: 6247 | M64: 6177 | N64: 5721 | O64: 5658 | P64: 4937 | Q64: 3644 | R64: 3059 | S64: 2777 | T64: 2241 | U64: 1734 | V64: 1301 | W64: 1410 | X64: .
E65: Privátní sektor | J65: 12477 | K65: 12942 | L65: 13295 | M65: 13019 | N65: 12705 | O65: 12636 | P65: 12084 | Q65: 10269 | R65: 9755 | S65: 9168 | T65: 7692 | U65: 6924 | V65: 6495 | W65: 6551 | X65: .
E66: v tom | F66: střední vzdělávání | J66: 51 | K66: 65 | L66: 42 | M66: 36 | N66: 65 | O66: 34 | P66: 38 | Q66: 46 | R66: 69 | S66: 43 | T66: 50 | U66: 51 | V66: 62 | W66: 62 | X66: .
F67: střední vzdělávání s výučním listem | J67: 4118 | K67: 3868 | L67: 3696 | M67: 3351 | N67: 3232 | O67: 3257 | P67: 2806 | Q67: 2812 | R67: 2741 | S67: 2505 | T67: 2392 | U67: 2362 | V67: 2170 | W67: 2292 | X67: .
F68: střední vzdělávání s maturitní zkouškou | J68: 6583 | K68: 6954 | L68: 7548 | M68: 7681 | N68: 7775 | O68: 7751 | P68: 7938 | Q68: 6651 | R68: 6324 | S68: 6178 | T68: 4810 | U68: 4283 | V68: 4032 | W68: 3977 | X68: .
F69: nástavbové studium | J69: 1725 | K69: 2055 | L69: 2009 | M69: 1951 | N69: 1633 | O69: 1594 | P69: 1302 | Q69: 760 | R69: 621 | S69: 442 | T69: 440 | U69: 228 | V69: 231 | W69: 220 | X69: .
E70: Církev | J70: 613 | K70: 494 | L70: 521 | M70: 641 | N70: 553 | O70: 525 | P70: 514 | Q70: 471 | R70: 510 | S70: 502 | T70: 495 | U70: 421 | V70: 489 | W70: 434 | X70: .
E71: v tom | F71: střední vzdělávání | J71: 74 | K71: 44 | L71: 43 | M71: 31 | N71: 41 | O71: 27 | P71: 34 | Q71: 22 | R71: 45 | S71: 53 | T71: 55 | U71: 41 | V71: 62 | W71: 59 | X71: .
F72: střední vzdělávání s výučním listem | J72: 76 | K72: 81 | L72: 57 | M72: 93 | N72: 92 | O72: 85 | P72: 78 | Q72: 82 | R72: 89 | S72: 100 | T72: 85 | U72: 103 | V72: 100 | W72: 84 | X72: .
F73: střední vzdělávání s maturitní zkouškou | J73: 443 | K73: 357 | L73: 404 | M73: 503 | N73: 405 | O73: 399 | P73: 389 | Q73: 352 | R73: 366 | S73: 330 | T73: 333 | U73: 264 | V73: 305 | W73: 276 | X73: .
F74: nástavbové studium | J74: 20 | K74: 12 | L74: 17 | M74: 14 | N74: 15 | O74: 14 | P74: 13 | Q74: 15 | R74: 10 | S74: 19 | T74: 22 | U74: 13 | V74: 22 | W74: 15 | X74: .
D75: Komentáře: | X75: Zdroj: databáze MŠMT
D76: 1) | E76: Údaje za střední vzdělávání s výučním listem a za střední vzdělávání s maturitní zkouškou jsou včetně zkráceného studia, komentář platí pro všechny zřizovatele.

Sheet B5.3.8
D4: Tab. B5.3.8: | H4: SŠ – odborné vzdělávání, ostatní formy vzdělávání – žáci, nově
B5: 18 | D5: přijatí a absolventi ve školním roce 2007/08 až 2017/18 – podle zřizovatele a druhu vzdělávání
D7: Zřizovatel Druh vzdělávání | J7: 2003/04 | K7: 2004/05 | L7: 2005/06 | M7: 2006/07 | N7: 2007/08 | O7: 2008/09 | P7: 2009/10 | Q7: 2010/11 | R7: 2011/12 | S7: 2012/13 | T7: 2013/14 | U7: 2014/15 | V7: 2015/16 | W7: 2016/17 | X7: 2017/18
D12: Žáci
E13: Celkem | J13: 32839 | K13: 35054 | L13: 34731 | M13: 33911 | N13: 34404 | O13: 36304 | P13: 35843 | Q13: 35043 | R13: 30250 | S13: 26407 | T13: 24402 | U13: 22549 | V13: 21074 | W13: 20389 | X13: 18170
E14: v tom | F14: střední vzdělávání | J14: 39 | K14: 62 | L14: 85 | M14: 136 | N14: 57 | O14: 120 | P14: 115 | Q14: 145 | R14: 87 | S14: 25 | T14: 32 | U14: 40 | V14: 39 | W14: 35 | X14: 33
F15: střední vzdělávání s výučním listem1) | J15: 1382 | K15: 1639 | L15: 1441 | M15: 1280 | N15: 1415 | O15: 1338 | P15: 1379 | Q15: 1493 | R15: 1501 | S15: 1666 | T15: 1936 | U15: 2000 | V15: 2187 | W15: 2503 | X15: 2573
F16: střední vzdělávání s maturitní zkouškou1) | J16: 9335 | K16: 9768 | L16: 9369 | M16: 9977 | N16: 9671 | O16: 9634 | P16: 9528 | Q16: 9457 | R16: 9023 | S16: 8907 | T16: 8913 | U16: 9118 | V16: 8667 | W16: 8618 | X16: 8162
F17: nástavbové studium | J17: 22083 | K17: 23585 | L17: 23836 | M17: 22518 | N17: 23261 | O17: 25212 | P17: 24821 | Q17: 23948 | R17: 19639 | S17: 15809 | T17: 13521 | U17: 11391 | V17: 10181 | W17: 9233 | X17: 7402
E18: Veřejný | J18: 19807 | K18: 21471 | L18: 21031 | M18: 20270 | N18: 20280 | O18: 21139 | P18: 20766 | Q18: 20743 | R18: 18140 | S18: 16010 | T18: 14862 | U18: 12978 | V18: 11804 | W18: 10825 | X18: 8983
E19: v tom | F19: střední vzdělávání | J19: 35 | K19: 40 | L19: 60 | M19: 136 | N19: 57 | O19: 120 | P19: 115 | Q19: 130 | R19: 58 | S19: 0 | T19: 0 | U19: 0 | V19: 0 | W19: 0 | X19: 0
F20: střední vzdělávání s výučním listem | J20: 813 | K20: 1037 | L20: 851 | M20: 716 | N20: 846 | O20: 828 | P20: 851 | Q20: 926 | R20: 998 | S20: 1033 | T20: 1229 | U20: 1270 | V20: 1394 | W20: 1551 | X20: 1602
F21: střední vzdělávání s maturitní zkouškou | J21: 6802 | K21: 6986 | L21: 6520 | M21: 6438 | N21: 6243 | O21: 5948 | P21: 5822 | Q21: 5553 | R21: 5238 | S21: 4957 | T21: 4838 | U21: 4224 | V21: 3918 | W21: 3458 | X21: 3020
F22: nástavbové studium | J22: 12157 | K22: 13408 | L22: 13600 | M22: 12980 | N22: 13134 | O22: 14243 | P22: 13978 | Q22: 14134 | R22: 11846 | S22: 10020 | T22: 8795 | U22: 7484 | V22: 6492 | W22: 5816 | X22: 4361
E23: Privátní sektor | J23: 12976 | K23: 13517 | L23: 13647 | M23: 13553 | N23: 14070 | O23: 15081 | P23: 15027 | Q23: 14215 | R23: 12003 | S23: 10181 | T23: 9295 | U23: 9253 | V23: 8936 | W23: 9212 | X23: 8901
E24: v tom | F24: střední vzdělávání | J24: 4 | K24: 22 | L24: 25 | M24: 0 | N24: 0 | O24: 0 | P24: 0 | Q24: 15 | R24: 29 | S24: 25 | T24: 32 | U24: 40 | V24: 39 | W24: 35 | X24: 33
F25: střední vzdělávání s výučním listem | J25: 569 | K25: 602 | L25: 590 | M25: 564 | N25: 569 | O25: 510 | P25: 528 | Q25: 567 | R25: 503 | S25: 633 | T25: 707 | U25: 730 | V25: 793 | W25: 933 | X25: 954
F26: střední vzdělávání s maturitní zkouškou | J26: 2477 | K26: 2716 | L26: 2796 | M26: 3451 | N26: 3374 | O26: 3602 | P26: 3656 | Q26: 3819 | R26: 3678 | S26: 3734 | T26: 3830 | U26: 4576 | V26: 4415 | W26: 4827 | X26: 4873
F27: nástavbové studium | J27: 9926 | K27: 10177 | L27: 10236 | M27: 9538 | N27: 10127 | O27: 10969 | P27: 10843 | Q27: 9814 | R27: 7793 | S27: 5789 | T27: 4726 | U27: 3907 | V27: 3689 | W27: 3417 | X27: 3041
E28: Církev | J28: 56 | K28: 66 | L28: 53 | M28: 88 | N28: 54 | O28: 84 | P28: 50 | Q28: 85 | R28: 107 | S28: 216 | T28: 245 | U28: 318 | V28: 334 | W28: 352 | X28: 286
E29: v tom | F29: střední vzdělávání | J29: 0 | K29: 0 | L29: 0 | M29: 0 | N29: 0 | O29: 0 | P29: 0 | Q29: 0 | R29: 0 | S29: 0 | T29: 0 | U29: 0 | V29: 0 | W29: 0 | X29: 0
F30: střední vzdělávání s výučním listem | J30: 0 | K30: 0 | L30: 0 | M30: 0 | N30: 0 | O30: 0 | P30: 0 | Q30: 0 | R30: 0 | S30: 0 | T30: 0 | U30: 0 | V30: 0 | W30: 19 | X30: 17
F31: střední vzdělávání s maturitní zkouškou | J31: 56 | K31: 66 | L31: 53 | M31: 88 | N31: 54 | O31: 84 | P31: 50 | Q31: 85 | R31: 107 | S31: 216 | T31: 245 | U31: 318 | V31: 334 | W31: 333 | X31: 269
F32: nástavbové studium | J32: 0 | K32: 0 | L32: 0 | M32: 0 | N32: 0 | O32: 0 | P32: 0 | Q32: 0 | R32: 0 | S32: 0 | T32: 0 | U32: 0 | V32: 0 | W32: 0 | X32: 0
D33: Nově přijatí
E34: Celkem | J34: 14708 | K34: 15031 | L34: 12955 | M34: 13632 | N34: 14565 | O34: 15492 | P34: 14056 | Q34: 13965 | R34: 10897 | S34: 9527 | T34: 9542 | U34: 8536 | V34: 7960 | W34: 8160 | X34: 6683
E35: v tom | F35: střední vzdělávání | J35: 12 | K35: 40 | L35: 47 | M35: 77 | N35: 30 | O35: 66 | P35: 67 | Q35: 87 | R35: 20 | S35: 9 | T35: 22 | U35: 16 | V35: 21 | W35: 20 | X35: 16
F36: střední vzdělávání s výučním listem1) | J36: 528 | K36: 768 | L36: 561 | M36: 515 | N36: 526 | O36: 531 | P36: 523 | Q36: 551 | R36: 622 | S36: 623 | T36: 696 | U36: 792 | V36: 837 | W36: 935 | X36: 1048
F37: střední vzdělávání s maturitní zkouškou1) | J37: 2967 | K37: 3091 | L37: 2424 | M37: 3259 | N37: 3004 | O37: 3074 | P37: 2780 | Q37: 2808 | R37: 2741 | S37: 2747 | T37: 2817 | U37: 2862 | V37: 2707 | W37: 2787 | X37: 2669
F38: nástavbové studium | J38: 11201 | K38: 11132 | L38: 9923 | M38: 9781 | N38: 11005 | O38: 11821 | P38: 10686 | Q38: 10519 | R38: 7514 | S38: 6148 | T38: 6007 | U38: 4866 | V38: 4395 | W38: 4418 | X38: 2950
E39: Veřejný | J39: 9257 | K39: 9981 | L39: 8406 | M39: 8401 | N39: 9007 | O39: 9616 | P39: 8556 | Q39: 8799 | R39: 6979 | S39: 6261 | T39: 6220 | U39: 5000 | V39: 4670 | W39: 4514 | X39: 3326
E40: v tom | F40: střední vzdělávání | J40: 12 | K40: 25 | L40: 47 | M40: 77 | N40: 30 | O40: 66 | P40: 67 | Q40: 72 | R40: 0 | S40: 0 | T40: 0 | U40: 0 | V40: 0 | W40: 0 | X40: 0
F41: střední vzdělávání s výučním listem | J41: 383 | K41: 597 | L41: 418 | M41: 335 | N41: 380 | O41: 388 | P41: 322 | Q41: 407 | R41: 429 | S41: 370 | T41: 474 | U41: 545 | V41: 552 | W41: 618 | X41: 706
F42: střední vzdělávání s maturitní zkouškou | J42: 2316 | K42: 2347 | L42: 1805 | M42: 2138 | N42: 2067 | O42: 2052 | P42: 1771 | Q42: 1624 | R42: 1624 | S42: 1714 | T42: 1671 | U42: 1204 | V42: 1334 | W42: 1067 | X42: 986
F43: nástavbové studium | J43: 6546 | K43: 7012 | L43: 6136 | M43: 5851 | N43: 6530 | O43: 7110 | P43: 6396 | Q43: 6696 | R43: 4926 | S43: 4177 | T43: 4075 | U43: 3251 | V43: 2784 | W43: 2829 | X43: 1634
E44: Privátní sektor | J44: 5451 | K44: 5014 | L44: 4549 | M44: 5197 | N44: 5558 | O44: 5840 | P44: 5500 | Q44: 5125 | R44: 3857 | S44: 3143 | T44: 3236 | U44: 3401 | V44: 3160 | W44: 3527 | X44: 3247
E45: v tom | F45: střední vzdělávání | J45: 0 | K45: 15 | L45: 0 | M45: 0 | N45: 0 | O45: 0 | P45: 0 | Q45: 15 | R45: 20 | S45: 9 | T45: 22 | U45: 16 | V45: 21 | W45: 20 | X45: 16
F46: střední vzdělávání s výučním listem | J46: 145 | K46: 171 | L46: 143 | M46: 180 | N46: 146 | O46: 143 | P46: 201 | Q46: 144 | R46: 193 | S46: 253 | T46: 222 | U46: 247 | V46: 285 | W46: 298 | X46: 342
F47: střední vzdělávání s maturitní zkouškou | J47: 651 | K47: 708 | L47: 619 | M47: 1087 | N47: 937 | O47: 986 | P47: 1009 | Q47: 1143 | R47: 1056 | S47: 910 | T47: 1060 | U47: 1523 | V47: 1243 | W47: 1620 | X47: 1573
F48: nástavbové studium | J48: 4655 | K48: 4120 | L48: 3787 | M48: 3930 | N48: 4475 | O48: 4711 | P48: 4290 | Q48: 3823 | R48: 2588 | S48: 1971 | T48: 1932 | U48: 1615 | V48: 1611 | W48: 1589 | X48: 1316
E49: Církev | J49: 0 | K49: 36 | L49: 0 | M49: 34 | N49: 0 | O49: 36 | P49: 0 | Q49: 41 | R49: 61 | S49: 123 | T49: 86 | U49: 135 | V49: 130 | W49: 119 | X49: 110
E50: v tom | F50: střední vzdělávání | J50: 0 | K50: 0 | L50: 0 | M50: 0 | N50: 0 | O50: 0 | P50: 0 | Q50: 0 | R50: 0 | S50: 0 | T50: 0 | U50: 0 | V50: 0 | W50: 0 | X50: 0
F51: střední vzdělávání s výučním listem | J51: 0 | K51: 0 | L51: 0 | M51: 0 | N51: 0 | O51: 0 | P51: 0 | Q51: 0 | R51: 0 | S51: 0 | T51: 0 | U51: 0 | V51: 0 | W51: 19 | X51: 0
F52: střední vzdělávání s maturitní zkouškou | J52: 0 | K52: 36 | L52: 0 | M52: 34 | N52: 0 | O52: 36 | P52: 0 | Q52: 41 | R52: 61 | S52: 123 | T52: 86 | U52: 135 | V52: 130 | W52: 100 | X52: 110
F53: nástavbové studium | J53: 0 | K53: 0 | L53: 0 | M53: 0 | N53: 0 | O53: 0 | P53: 0 | Q53: 0 | R53: 0 | S53: 0 | T53: 0 | U53: 0 | V53: 0 | W53: 0 | X53: 0
D54: Absolventi
E55: Celkem | J55: 6279 | K55: 6476 | L55: 7852 | M55: 7885 | N55: 6912 | O55: 7443 | P55: 7183 | Q55: 6296 | R55: 5933 | S55: 5377 | T55: 4516 | U55: 4145 | V55: 4024 | W55: 4176 | X55: .
E56: v tom | F56: střední vzdělávání | J56: 13 | K56: 9 | L56: 24 | M56: 23 | N56: 58 | O56: 18 | P56: 40 | Q56: 46 | R56: 64 | S56: 11 | T56: 7 | U56: 14 | V56: 13 | W56: 10 | X56: .
F57: střední vzdělávání s výučním listem1) | J57: 535 | K57: 507 | L57: 444 | M57: 473 | N57: 456 | O57: 470 | P57: 323 | Q57: 521 | R57: 454 | S57: 439 | T57: 609 | U57: 713 | V57: 760 | W57: 940 | X57: .
F58: střední vzdělávání s maturitní zkouškou1) | J58: 1153 | K58: 1145 | L58: 1475 | M58: 1500 | N58: 1424 | O58: 1482 | P58: 1262 | Q58: 1175 | R58: 1366 | S58: 1502 | T58: 1541 | U58: 1855 | V58: 1866 | W58: 2147 | X58: .
F59: nástavbové studium | J59: 4578 | K59: 4815 | L59: 5909 | M59: 5889 | N59: 4974 | O59: 5473 | P59: 5558 | Q59: 4554 | R59: 4049 | S59: 3425 | T59: 2359 | U59: 1563 | V59: 1385 | W59: 1079 | X59: .
E60: Veřejný | J60: 3546 | K60: 3461 | L60: 4148 | M60: 4505 | N60: 3869 | O60: 3889 | P60: 3746 | Q60: 3706 | R60: 3323 | S60: 3096 | T60: 2481 | U60: 2130 | V60: 1953 | W60: 1914 | X60: .
E61: v tom | F61: střední vzdělávání | J61: 13 | K61: 9 | L61: 24 | M61: 23 | N61: 58 | O61: 18 | P61: 40 | Q61: 46 | R61: 55 | S61: 0 | T61: 0 | U61: 0 | V61: 0 | W61: 0 | X61: .
F62: střední vzdělávání s výučním listem | J62: 350 | K62: 303 | L62: 192 | M62: 324 | N62: 276 | O62: 284 | P62: 150 | Q62: 293 | R62: 310 | S62: 303 | T62: 400 | U62: 471 | V62: 541 | W62: 661 | X62: .
F63: střední vzdělávání s maturitní zkouškou | J63: 838 | K63: 772 | L63: 916 | M63: 945 | N63: 910 | O63: 833 | P63: 746 | Q63: 805 | R63: 846 | S63: 808 | T63: 706 | U63: 760 | V63: 597 | W63: 670 | X63: .
F64: nástavbové studium | J64: 2345 | K64: 2377 | L64: 3016 | M64: 3213 | N64: 2625 | O64: 2754 | P64: 2810 | Q64: 2562 | R64: 2112 | S64: 1985 | T64: 1375 | U64: 899 | V64: 815 | W64: 583 | X64: .
E65: Privátní sektor | J65: 2716 | K65: 3015 | L65: 3704 | M65: 3357 | N65: 3043 | O65: 3544 | P65: 3437 | Q65: 2577 | R65: 2610 | S65: 2265 | T65: 1989 | U65: 1965 | V65: 1994 | W65: 2127 | X65: .
E66: v tom | F66: střední vzdělávání | J66: 0 | K66: 0 | L66: 0 | M66: 0 | N66: 0 | O66: 0 | P66: 0 | Q66: 0 | R66: 9 | S66: 11 | T66: 7 | U66: 14 | V66: 13 | W66: 10 | X66: .
F67: střední vzdělávání s výučním listem | J67: 185 | K67: 204 | L67: 252 | M67: 149 | N67: 180 | O67: 186 | P67: 173 | Q67: 228 | R67: 144 | S67: 136 | T67: 209 | U67: 242 | V67: 219 | W67: 279 | X67: .
F68: střední vzdělávání s maturitní zkouškou | J68: 298 | K68: 373 | L68: 559 | M68: 532 | N68: 514 | O68: 639 | P68: 516 | Q68: 357 | R68: 520 | S68: 678 | T68: 789 | U68: 1045 | V68: 1192 | W68: 1342 | X68: .
F69: nástavbové studium | J69: 2233 | K69: 2438 | L69: 2893 | M69: 2676 | N69: 2349 | O69: 2719 | P69: 2748 | Q69: 1992 | R69: 1937 | S69: 1440 | T69: 984 | U69: 664 | V69: 570 | W69: 496 | X69: .
E70: Církev | J70: 17 | K70: 0 | L70: 0 | M70: 23 | N70: 0 | O70: 10 | P70: 0 | Q70: 13 | R70: 0 | S70: 16 | T70: 46 | U70: 50 | V70: 77 | W70: 135 | X70: .
E71: v tom | F71: střední vzdělávání | J71: 0 | K71: 0 | L71: 0 | M71: 0 | N71: 0 | O71: 0 | P71: 0 | Q71: 0 | R71: 0 | S71: 0 | T71: 0 | U71: 0 | V71: 0 | W71: 0 | X71: .
F72: střední vzdělávání s výučním listem | J72: 0 | K72: 0 | L72: 0 | M72: 0 | N72: 0 | O72: 0 | P72: 0 | Q72: 0 | R72: 0 | S72: 0 | T72: 0 | U72: 0 | V72: 0 | W72: 0 | X72: .
F73: střední vzdělávání s maturitní zkouškou | J73: 17 | K73: 0 | L73: 0 | M73: 23 | N73: 0 | O73: 10 | P73: 0 | Q73: 13 | R73: 0 | S73: 16 | T73: 46 | U73: 50 | V73: 77 | W73: 135 | X73: .
F74: nástavbové studium | J74: 0 | K74: 0 | L74: 0 | M74: 0 | N74: 0 | O74: 0 | P74: 0 | Q74: 0 | R74: 0 | S74: 0 | T74: 0 | U74: 0 | V74: 0 | W74: 0 | X74: .
D75: Komentáře: | X75: Zdroj: databáze MŠMT
D76: 1) | E76: Údaje za střední vzdělávání s výučním listem a za střední vzdělávání s maturitní zkouškou jsou včetně zkráceného studia, komentář platí pro všechny zřizovatele.

Sheet B5.3.9
D4: Tab. B5.3.9: | H4: SŠ – odborné vzdělávání, denní forma vzdělávání – žáci
B5: 0 | D5: ve školním roce 2007/08 až 2017/18 – podle území
D7: Území | J7: 2003/04 | K7: 2004/05 | L7: 2005/06 | M7: 2006/07 | N7: 2007/08 | O7: 2008/09 | P7: 2009/10 | Q7: 2010/11 | R7: 2011/12 | S7: 2012/13 | T7: 2013/14 | U7: 2014/15 | V7: 2015/16 | W7: 2016/17 | X7: 2017/18
E12: Česká republika | H12: CZ0 | J12: 400488 | K12: 400940 | L12: 398269 | M12: 396320 | N12: 388493 | O12: 382001 | P12: 376566 | Q12: 358809 | R12: 336005 | S12: 313334 | T12: 295863 | U12: 285327 | V12: 277988 | W12: 275466 | X12: 273811
E13: Praha | H13: CZ01 | J13: 47773 | K13: 47651 | L13: 47038 | M13: 46403 | N13: 45082 | O13: 43992 | P13: 43163 | Q13: 40830 | R13: 38346 | S13: 35954 | T13: 34294 | U13: 33371 | V13: 33505 | W13: 34279 | X13: 35099
F14: Hlavní město Praha | H14: CZ010 | J14: 47773 | K14: 47651 | L14: 47038 | M14: 46403 | N14: 45082 | O14: 43992 | P14: 43163 | Q14: 40830 | R14: 38346 | S14: 35954 | T14: 34294 | U14: 33371 | V14: 33505 | W14: 34279 | X14: 35099
E15: Střední Čechy | H15: CZ02 | J15: 34046 | K15: 34060 | L15: 33904 | M15: 34175 | N15: 34003 | O15: 33848 | P15: 33366 | Q15: 31928 | R15: 29938 | S15: 28264 | T15: 26978 | U15: 25992 | V15: 25376 | W15: 24924 | X15: 24866
F16: Středočeský kraj | H16: CZ020 | J16: 34046 | K16: 34060 | L16: 33904 | M16: 34175 | N16: 34003 | O16: 33848 | P16: 33366 | Q16: 31928 | R16: 29938 | S16: 28264 | T16: 26978 | U16: 25992 | V16: 25376 | W16: 24924 | X16: 24866
E17: Jihozápad | H17: CZ03 | J17: 46530 | K17: 46515 | L17: 46600 | M17: 46792 | N17: 45430 | O17: 44685 | P17: 44239 | Q17: 42083 | R17: 39885 | S17: 37467 | T17: 35431 | U17: 34266 | V17: 33570 | W17: 33382 | X17: 33036
F18: Jihočeský kraj | H18: CZ031 | J18: 26131 | K18: 25929 | L18: 25824 | M18: 25930 | N18: 25175 | O18: 24841 | P18: 24464 | Q18: 23277 | R18: 22060 | S18: 20898 | T18: 19722 | U18: 19091 | V18: 18663 | W18: 18364 | X18: 18044
F19: Plzeňský kraj | H19: CZ032 | J19: 20399 | K19: 20586 | L19: 20776 | M19: 20862 | N19: 20255 | O19: 19844 | P19: 19775 | Q19: 18806 | R19: 17825 | S19: 16569 | T19: 15709 | U19: 15175 | V19: 14907 | W19: 15018 | X19: 14992
E20: Severozápad | H20: CZ04 | J20: 45214 | K20: 45484 | L20: 45073 | M20: 44581 | N20: 43780 | O20: 43139 | P20: 42699 | Q20: 41181 | R20: 38567 | S20: 35811 | T20: 33548 | U20: 32116 | V20: 30933 | W20: 30489 | X20: 29988
F21: Karlovarský kraj | H21: CZ041 | J21: 11636 | K21: 11804 | L21: 11693 | M21: 11388 | N21: 11098 | O21: 10772 | P21: 10566 | Q21: 10120 | R21: 9389 | S21: 8578 | T21: 7958 | U21: 7512 | V21: 7277 | W21: 7249 | X21: 7160
F22: Ústecký kraj | H22: CZ042 | J22: 33578 | K22: 33680 | L22: 33380 | M22: 33193 | N22: 32682 | O22: 32367 | P22: 32133 | Q22: 31061 | R22: 29178 | S22: 27233 | T22: 25590 | U22: 24604 | V22: 23656 | W22: 23240 | X22: 22828
E23: Severovýchod | H23: CZ05 | J23: 58713 | K23: 58518 | L23: 58176 | M23: 57982 | N23: 57244 | O23: 56460 | P23: 55920 | Q23: 53877 | R23: 50428 | S23: 47112 | T23: 44639 | U23: 43688 | V23: 42610 | W23: 42323 | X23: 41929
F24: Liberecký kraj | H24: CZ051 | J24: 16768 | K24: 16639 | L24: 16644 | M24: 16509 | N24: 15853 | O24: 15359 | P24: 15063 | Q24: 14346 | R24: 13417 | S24: 12549 | T24: 11981 | U24: 11722 | V24: 11373 | W24: 11228 | X24: 11058
F25: Královéhradecký kraj | H25: CZ052 | J25: 21917 | K25: 22177 | L25: 22053 | M25: 22029 | N25: 22242 | O25: 22169 | P25: 22054 | Q25: 21257 | R25: 19922 | S25: 18612 | T25: 17508 | U25: 17085 | V25: 16516 | W25: 16313 | X25: 16013
F26: Pardubický kraj | H26: CZ053 | J26: 20028 | K26: 19702 | L26: 19479 | M26: 19444 | N26: 19149 | O26: 18932 | P26: 18803 | Q26: 18274 | R26: 17089 | S26: 15951 | T26: 15150 | U26: 14881 | V26: 14721 | W26: 14782 | X26: 14858
E27: Jihovýchod | H27: CZ06 | J27: 66220 | K27: 66102 | L27: 65310 | M27: 64874 | N27: 63883 | O27: 63015 | P27: 62293 | Q27: 59192 | R27: 55352 | S27: 51269 | T27: 47874 | U27: 45663 | V27: 44083 | W27: 43156 | X27: 42638
F28: Kraj Vysočina | H28: CZ063 | J28: 20713 | K28: 20662 | L28: 20301 | M28: 20322 | N28: 20128 | O28: 19912 | P28: 19838 | Q28: 18824 | R28: 17770 | S28: 16520 | T28: 15418 | U28: 14655 | V28: 14226 | W28: 13770 | X28: 13482
F29: Jihomoravský kraj | H29: CZ064 | J29: 45507 | K29: 45440 | L29: 45009 | M29: 44552 | N29: 43755 | O29: 43103 | P29: 42455 | Q29: 40368 | R29: 37582 | S29: 34749 | T29: 32456 | U29: 31008 | V29: 29857 | W29: 29386 | X29: 29156
E30: Střední Morava | H30: CZ07 | J30: 50987 | K30: 51112 | L30: 50577 | M30: 50121 | N30: 49061 | O30: 48020 | P30: 47299 | Q30: 44986 | R30: 41715 | S30: 38605 | T30: 36312 | U30: 35096 | V30: 34316 | W30: 34151 | X30: 33938
F31: Olomoucký kraj | H31: CZ071 | J31: 25034 | K31: 25187 | L31: 25073 | M31: 25064 | N31: 24558 | O31: 24190 | P31: 23944 | Q31: 22972 | R31: 21422 | S31: 20157 | T31: 19282 | U31: 18690 | V31: 18026 | W31: 17960 | X31: 17823
F32: Zlínský kraj | H32: CZ072 | J32: 25953 | K32: 25925 | L32: 25504 | M32: 25057 | N32: 24503 | O32: 23830 | P32: 23355 | Q32: 22014 | R32: 20293 | S32: 18448 | T32: 17030 | U32: 16406 | V32: 16290 | W32: 16191 | X32: 16115
E33: Moravskoslezsko | H33: CZ08 | J33: 51005 | K33: 51498 | L33: 51591 | M33: 51392 | N33: 50010 | O33: 48842 | P33: 47587 | Q33: 44732 | R33: 41774 | S33: 38852 | T33: 36787 | U33: 35135 | V33: 33595 | W33: 32762 | X33: 32317
F34: Moravskoslezský kraj | H34: CZ080 | J34: 51005 | K34: 51498 | L34: 51591 | M34: 51392 | N34: 50010 | O34: 48842 | P34: 47587 | Q34: 44732 | R34: 41774 | S34: 38852 | T34: 36787 | U34: 35135 | V34: 33595 | W34: 32762 | X34: 32317
X35: Zdroj: databáze MŠMT

Sheet B5.3.10
D4: Tab. B5.3.10: | H4: SŠ – odborné vzdělávání, denní forma vzdělávání – nově přijatí
D5: ve školním roce 2007/08 až 2017/18 – podle území
D7: Území | J7: 2003/04 | K7: 2004/05 | L7: 2005/06 | M7: 2006/07 | N7: 2007/08 | O7: 2008/09 | P7: 2009/10 | Q7: 2010/11 | R7: 2011/12 | S7: 2012/13 | T7: 2013/14 | U7: 2014/15 | V7: 2015/16 | W7: 2016/17 | X7: 2017/18
E12: Česká republika | H12: CZ0 | J12: 127619 | K12: 125246 | L12: 122311 | M12: 124669 | N12: 119675 | O12: 116788 | P12: 114585 | Q12: 101232 | R12: 94387 | S12: 89116 | T12: 87261 | U12: 86170 | V12: 84531 | W12: 83645 | X12: 83675
E13: Praha | H13: CZ01 | J13: 14883 | K13: 14546 | L13: 14019 | M13: 14279 | N13: 13596 | O13: 13240 | P13: 12742 | Q13: 11510 | R13: 10654 | S13: 10218 | T13: 10075 | U13: 10204 | V13: 10545 | W13: 10812 | X13: 10920
F14: Hlavní město Praha | H14: CZ010 | J14: 14883 | K14: 14546 | L14: 14019 | M14: 14279 | N14: 13596 | O14: 13240 | P14: 12742 | Q14: 11510 | R14: 10654 | S14: 10218 | T14: 10075 | U14: 10204 | V14: 10545 | W14: 10812 | X14: 10920
E15: Střední Čechy | H15: CZ02 | J15: 10858 | K15: 10698 | L15: 10513 | M15: 11120 | N15: 10856 | O15: 10671 | P15: 10206 | Q15: 9323 | R15: 8561 | S15: 8400 | T15: 8236 | U15: 8140 | V15: 7675 | W15: 7666 | X15: 7837
F16: Středočeský kraj | H16: CZ020 | J16: 10858 | K16: 10698 | L16: 10513 | M16: 11120 | N16: 10856 | O16: 10671 | P16: 10206 | Q16: 9323 | R16: 8561 | S16: 8400 | T16: 8236 | U16: 8140 | V16: 7675 | W16: 7666 | X16: 7837
E17: Jihozápad | H17: CZ03 | J17: 15077 | K17: 14424 | L17: 14499 | M17: 14877 | N17: 13703 | O17: 13650 | P17: 13699 | Q17: 11877 | R17: 11212 | S17: 10627 | T17: 10341 | U17: 10336 | V17: 10038 | W17: 10098 | X17: 9878
F18: Jihočeský kraj | H18: CZ031 | J18: 8307 | K18: 7822 | L18: 7885 | M18: 8187 | N18: 7517 | O18: 7470 | P18: 7446 | Q18: 6509 | R18: 6201 | S18: 5947 | T18: 5763 | U18: 5623 | V18: 5547 | W18: 5432 | X18: 5373
F19: Plzeňský kraj | H19: CZ032 | J19: 6770 | K19: 6602 | L19: 6614 | M19: 6690 | N19: 6186 | O19: 6180 | P19: 6253 | Q19: 5368 | R19: 5011 | S19: 4680 | T19: 4578 | U19: 4713 | V19: 4491 | W19: 4666 | X19: 4505
E20: Severozápad | H20: CZ04 | J20: 15205 | K20: 15073 | L20: 14698 | M20: 14839 | N20: 14328 | O20: 13960 | P20: 13578 | Q20: 12285 | R20: 11310 | S20: 10487 | T20: 10075 | U20: 9808 | V20: 9666 | W20: 9568 | X20: 9533
F21: Karlovarský kraj | H21: CZ041 | J21: 3952 | K21: 3983 | L21: 3777 | M21: 3727 | N21: 3676 | O21: 3469 | P21: 3490 | Q21: 3164 | R21: 2751 | S21: 2455 | T21: 2467 | U21: 2314 | V21: 2303 | W21: 2317 | X21: 2350
F22: Ústecký kraj | H22: CZ042 | J22: 11253 | K22: 11090 | L22: 10921 | M22: 11112 | N22: 10652 | O22: 10491 | P22: 10088 | Q22: 9121 | R22: 8559 | S22: 8032 | T22: 7608 | U22: 7494 | V22: 7363 | W22: 7251 | X22: 7183
E23: Severovýchod | H23: CZ05 | J23: 18810 | K23: 18244 | L23: 17629 | M23: 18054 | N23: 17664 | O23: 17070 | P23: 16909 | Q23: 14938 | R23: 14242 | S23: 13339 | T23: 13072 | U23: 13110 | V23: 12892 | W23: 12595 | X23: 12604
F24: Liberecký kraj | H24: CZ051 | J24: 5771 | K24: 5423 | L24: 5435 | M24: 5353 | N24: 4905 | O24: 4765 | P24: 4640 | Q24: 4139 | R24: 3918 | S24: 3773 | T24: 3538 | U24: 3561 | V24: 3523 | W24: 3426 | X24: 3376
F25: Královéhradecký kraj | H25: CZ052 | J25: 6723 | K25: 6864 | L25: 6498 | M25: 6813 | N25: 6928 | O25: 6656 | P25: 6689 | Q25: 5723 | R25: 5633 | S25: 5148 | T25: 5101 | U25: 5067 | V25: 4872 | W25: 4770 | X25: 4696
F26: Pardubický kraj | H26: CZ053 | J26: 6316 | K26: 5957 | L26: 5696 | M26: 5888 | N26: 5831 | O26: 5649 | P26: 5580 | Q26: 5076 | R26: 4691 | S26: 4418 | T26: 4433 | U26: 4482 | V26: 4497 | W26: 4399 | X26: 4532
E27: Jihovýchod | H27: CZ06 | J27: 20627 | K27: 20335 | L27: 19732 | M27: 20082 | N27: 19513 | O27: 19098 | P27: 18882 | Q27: 16292 | R27: 15255 | S27: 14301 | T27: 14035 | U27: 13734 | V27: 13267 | W27: 12972 | X27: 12984
F28: Kraj Vysočina | H28: CZ063 | J28: 6324 | K28: 6181 | L28: 6113 | M28: 6269 | N28: 5997 | O28: 6018 | P28: 5973 | Q28: 5079 | R28: 4925 | S28: 4537 | T28: 4371 | U28: 4204 | V28: 4001 | W28: 3913 | X28: 3916
F29: Jihomoravský kraj | H29: CZ064 | J29: 14303 | K29: 14154 | L29: 13619 | M29: 13813 | N29: 13516 | O29: 13080 | P29: 12909 | Q29: 11213 | R29: 10330 | S29: 9764 | T29: 9664 | U29: 9530 | V29: 9266 | W29: 9059 | X29: 9068
E30: Střední Morava | H30: CZ07 | J30: 15930 | K30: 15802 | L30: 15435 | M30: 15421 | N30: 15020 | O30: 14485 | P30: 14345 | Q30: 12434 | R30: 11449 | S30: 10846 | T30: 10581 | U30: 10505 | V30: 10240 | W30: 10159 | X30: 10034
F31: Olomoucký kraj | H31: CZ071 | J31: 7917 | K31: 7996 | L31: 7842 | M31: 7841 | N31: 7659 | O31: 7454 | P31: 7480 | Q31: 6628 | R31: 6132 | S31: 5846 | T31: 5789 | U31: 5647 | V31: 5348 | W31: 5466 | X31: 5400
F32: Zlínský kraj | H32: CZ072 | J32: 8013 | K32: 7806 | L32: 7593 | M32: 7580 | N32: 7361 | O32: 7031 | P32: 6865 | Q32: 5806 | R32: 5317 | S32: 5000 | T32: 4792 | U32: 4858 | V32: 4892 | W32: 4693 | X32: 4634
E33: Moravskoslezsko | H33: CZ08 | J33: 16229 | K33: 16124 | L33: 15786 | M33: 15997 | N33: 14995 | O33: 14614 | P33: 14224 | Q33: 12573 | R33: 11704 | S33: 10898 | T33: 10846 | U33: 10333 | V33: 10208 | W33: 9775 | X33: 9885
F34: Moravskoslezský kraj | H34: CZ080 | J34: 16229 | K34: 16124 | L34: 15786 | M34: 15997 | N34: 14995 | O34: 14614 | P34: 14224 | Q34: 12573 | R34: 11704 | S34: 10898 | T34: 10846 | U34: 10333 | V34: 10208 | W34: 9775 | X34: 9885
X35: Zdroj: databáze MŠMT

Sheet B5.3.11
D4: Tab. B5.3.11: | H4: SŠ – odborné vzdělávání, denní forma vzdělávání – absolventi
D5: ve školním roce 2007/08 až 2017/18 – podle území
D7: Území | J7: 2003/04 | K7: 2004/05 | L7: 2005/06 | M7: 2006/07 | N7: 2007/08 | O7: 2008/09 | P7: 2009/10 | Q7: 2010/11 | R7: 2011/12 | S7: 2012/13 | T7: 2013/14 | U7: 2014/15 | V7: 2015/16 | W7: 2016/17 | X7: 2017/18
E12: Česká republika | H12: CZ0 | J12: 100209 | K12: 100961 | L12: 100632 | M12: 98046 | N12: 94136 | O12: 91007 | P12: 84882 | Q12: 79208 | R12: 76919 | S12: 72902 | T12: 64316 | U12: 59086 | V12: 54082 | W12: 53960 | X12: .
E13: Praha | H13: CZ01 | J13: 11505 | K13: 11712 | L13: 11594 | M13: 11571 | N13: 10827 | O13: 10210 | P13: 9588 | Q13: 8616 | R13: 8383 | S13: 7875 | T13: 7038 | U13: 6573 | V13: 6120 | W13: 5989 | X13: .
F14: Hlavní město Praha | H14: CZ010 | J14: 11505 | K14: 11712 | L14: 11594 | M14: 11571 | N14: 10827 | O14: 10210 | P14: 9588 | Q14: 8616 | R14: 8383 | S14: 7875 | T14: 7038 | U14: 6573 | V14: 6120 | W14: 5989 | X14: .
E15: Střední Čechy | H15: CZ02 | J15: 8636 | K15: 8597 | L15: 8709 | M15: 8391 | N15: 8253 | O15: 8066 | P15: 7840 | Q15: 7114 | R15: 6799 | S15: 6556 | T15: 5874 | U15: 5364 | V15: 4982 | W15: 5042 | X15: .
F16: Středočeský kraj | H16: CZ020 | J16: 8636 | K16: 8597 | L16: 8709 | M16: 8391 | N16: 8253 | O16: 8066 | P16: 7840 | Q16: 7114 | R16: 6799 | S16: 6556 | T16: 5874 | U16: 5364 | V16: 4982 | W16: 5042 | X16: .
E17: Jihozápad | H17: CZ03 | J17: 11853 | K17: 11930 | L17: 11768 | M17: 11940 | N17: 11006 | O17: 10940 | P17: 10534 | Q17: 9279 | R17: 9255 | S17: 8853 | T17: 7900 | U17: 7024 | V17: 6523 | W17: 6519 | X17: .
F18: Jihočeský kraj | H18: CZ031 | J18: 6759 | K18: 6768 | L18: 6606 | M18: 6572 | N18: 6055 | O18: 6193 | P18: 5820 | Q18: 5323 | R18: 5265 | S18: 5071 | T18: 4406 | U18: 4002 | V18: 3696 | W18: 3693 | X18: .
F19: Plzeňský kraj | H19: CZ032 | J19: 5094 | K19: 5162 | L19: 5162 | M19: 5368 | N19: 4951 | O19: 4747 | P19: 4714 | Q19: 3956 | R19: 3990 | S19: 3782 | T19: 3494 | U19: 3022 | V19: 2827 | W19: 2826 | X19: .
E20: Severozápad | H20: CZ04 | J20: 10473 | K20: 10953 | L20: 10668 | M20: 10323 | N20: 9478 | O20: 9434 | P20: 8294 | Q20: 7873 | R20: 7471 | S20: 7189 | T20: 6267 | U20: 5575 | V20: 5031 | W20: 5227 | X20: .
F21: Karlovarský kraj | H21: CZ041 | J21: 2758 | K21: 2826 | L21: 2740 | M21: 2684 | N21: 2488 | O21: 2507 | P21: 1942 | Q21: 1933 | R21: 1902 | S21: 1828 | T21: 1648 | U21: 1356 | V21: 1201 | W21: 1298 | X21: .
F22: Ústecký kraj | H22: CZ042 | J22: 7715 | K22: 8127 | L22: 7928 | M22: 7639 | N22: 6990 | O22: 6927 | P22: 6352 | Q22: 5940 | R22: 5569 | S22: 5361 | T22: 4619 | U22: 4219 | V22: 3830 | W22: 3929 | X22: .
E23: Severovýchod | H23: CZ05 | J23: 14727 | K23: 14582 | L23: 14797 | M23: 14060 | N23: 13407 | O23: 13188 | P23: 12499 | Q23: 12066 | R23: 11478 | S23: 11040 | T23: 9592 | U23: 9121 | V23: 8210 | W23: 8257 | X23: .
F24: Liberecký kraj | H24: CZ051 | J24: 4046 | K24: 4068 | L24: 4123 | M24: 3921 | N24: 3700 | O24: 3574 | P24: 3412 | Q24: 2943 | R24: 2678 | S24: 2519 | T24: 2359 | U24: 2235 | V24: 2075 | W24: 2026 | X24: .
F25: Královéhradecký kraj | H25: CZ052 | J25: 5441 | K25: 5597 | L25: 5771 | M25: 5279 | N25: 5165 | O25: 5175 | P25: 4824 | Q25: 5031 | R25: 4770 | S25: 4606 | T25: 3751 | U25: 3831 | V25: 3290 | W25: 3301 | X25: .
F26: Pardubický kraj | H26: CZ053 | J26: 5240 | K26: 4917 | L26: 4903 | M26: 4860 | N26: 4542 | O26: 4439 | P26: 4263 | Q26: 4092 | R26: 4030 | S26: 3915 | T26: 3482 | U26: 3055 | V26: 2845 | W26: 2930 | X26: .
E27: Jihovýchod | H27: CZ06 | J27: 17350 | K27: 17299 | L27: 16860 | M27: 16223 | N27: 16321 | O27: 15413 | P27: 14526 | Q27: 13805 | R27: 13566 | S27: 12700 | T27: 11169 | U27: 10141 | V27: 9420 | W27: 9257 | X27: .
F28: Kraj Vysočina | H28: CZ063 | J28: 5444 | K28: 5440 | L28: 5314 | M28: 5154 | N28: 5112 | O28: 4954 | P28: 4980 | Q28: 4480 | R28: 4506 | S28: 4234 | T28: 3678 | U28: 3344 | V28: 3241 | W28: 3108 | X28: .
F29: Jihomoravský kraj | H29: CZ064 | J29: 11906 | K29: 11859 | L29: 11546 | M29: 11069 | N29: 11209 | O29: 10459 | P29: 9546 | Q29: 9325 | R29: 9060 | S29: 8466 | T29: 7491 | U29: 6797 | V29: 6179 | W29: 6149 | X29: .
E30: Střední Morava | H30: CZ07 | J30: 13174 | K30: 13438 | L30: 13394 | M30: 12970 | N30: 12433 | O30: 12191 | P30: 10485 | Q30: 10716 | R30: 10173 | S30: 9675 | T30: 8511 | U30: 7735 | V30: 7155 | W30: 7187 | X30: .
F31: Olomoucký kraj | H31: CZ071 | J31: 6340 | K31: 6558 | L31: 6415 | M31: 6445 | N31: 6106 | O31: 5867 | P31: 5318 | Q31: 5336 | R31: 4871 | S31: 4725 | T31: 4337 | U31: 3943 | V31: 3696 | W31: 3789 | X31: .
F32: Zlínský kraj | H32: CZ072 | J32: 6834 | K32: 6880 | L32: 6979 | M32: 6525 | N32: 6327 | O32: 6324 | P32: 5167 | Q32: 5380 | R32: 5302 | S32: 4950 | T32: 4174 | U32: 3792 | V32: 3459 | W32: 3398 | X32: .
E33: Moravskoslezsko | H33: CZ08 | J33: 12491 | K33: 12450 | L33: 12842 | M33: 12568 | N33: 12411 | O33: 11565 | P33: 11116 | Q33: 9739 | R33: 9794 | S33: 9014 | T33: 7965 | U33: 7553 | V33: 6641 | W33: 6482 | X33: .
F34: Moravskoslezský kraj | H34: CZ080 | J34: 12491 | K34: 12450 | L34: 12842 | M34: 12568 | N34: 12411 | O34: 11565 | P34: 11116 | Q34: 9739 | R34: 9794 | S34: 9014 | T34: 7965 | U34: 7553 | V34: 6641 | W34: 6482 | X34: .
X35: Zdroj: databáze MŠMT

Sheet B5.3.12
D4: Tab. B5.3.12: | H4: SŠ – odborné vzdělávání – výdaje včetně konzervatoří a VOŠ
D5: v letech 2007 až 2017
X6: v tis. Kč
J7: 2003 | K7: 2004 | L7: 2005 | M7: 2006 | N7: 2007 | O7: 2008 | P7: 2009 | Q7: 2010 | R7: 2011 | S7: 2012 | T7: 2013 | U7: 2014 | V7: 2015 | W7: 2016 | X7: 2017
D12: Celkové výdaje za odborné vzdělávání2)
E13: Celkem | J13: =#REF!+#REF! ->  | K13: =#REF!+#REF! ->  | L13: =#REF!+#REF! ->  | M13: 23033272.05 | N13: 23834058.05 | O13: 24833863.49 | P13: 26549152.16 | Q13: 25739354.17 | R13: 25179342.34 | S13: 24548241.02 | T13: 24226927.25 | U13: =U14+U15 -> 23566666.06 | V13: =V14+V15 -> 25789731.7 | W13: =W14+W15 -> 22581781.08 | X13: =X14+X15 -> 27022476.44
E14: v tom | F14: neinvestiční výdaje | J14: =#REF!+#REF! ->  | K14: =#REF!+#REF! ->  | L14: =#REF!+#REF! ->  | M14: 21763033.99 | N14: 22697266.91 | O14: 23146073.78 | P14: 23894599.27 | Q14: 23244298.88 | R14: 22967939.32 | S14: 22840451.62 | T14: 22909500.84 | U14: =U20+U26 -> 21430152.63 | V14: 23102861.09 | W14: =W20+W26 -> 21093495.43 | X14: 25223518.87
F15: investiční výdaje | J15: =#REF!+#REF! ->  | K15: =#REF!+#REF! ->  | L15: =#REF!+#REF! ->  | M15: 1270238.06 | N15: 1136791.14 | O15: 1687789.71 | P15: 2654552.89 | Q15: 2495055.29 | R15: 2211403.02 | S15: 1707789.408 | T15: 1317426.408 | U15: 2136513.429 | V15: 2686870.611 | W15: =W21+W27 -> 1488285.65 | X15: 1798957.57
E16: v % | F16: neinvestiční výdaje | J16: =J14/J13 ->  | M16: 0.9448520359 | N16: 0.95230392 | O16: 0.9320367646 | P16: 0.9000136474 | Q16: 0.9030645729 | R16: 0.9121739166 | S16: 0.9304312922 | T16: 0.9456213991 | U16: =U14/U13 -> 0.9093417192 | V16: =V14/V13 -> 0.8958162635 | W16: =W14/W13 -> 0.9340935224 | X16: =X14/X13 -> 0.933427361
F17: investiční výdaje | J17: =J15/J13 ->  | M17: 0.05514796409 | N17: 0.04769608002 | O17: 0.06796323539 | P17: 0.09998635263 | Q17: 0.09693542711 | R17: 0.0878260834 | S17: 0.06956870785 | T17: 0.0543786009 | U17: =U15/U13 -> 0.0906582808 | V17: =V15/V13 -> 0.1041837365 | W17: =W15/W13 -> 0.06590647765 | X17: =X15/X13 -> 0.06657263904
D18: Výdaje z rozpočtu kapitoly 333-MŠMT
E19: Celkem | J19: =#REF!+#REF! ->  | K19: =#REF!+#REF! ->  | L19: =#REF!+#REF! ->  | M19: 188831 | N19: 175564.73 | O19: 183018 | P19: 215068.62 | Q19: 277218.47 | R19: 267071.2059 | S19: 927663.5549 | T19: 733848.1157 | U19: =U20+U21 -> 335463.8727 | V19: =V20+V21 -> 572753.2407 | W19: =W20+W21 -> 139438.2255 | X19: =X20+X21 -> 902706.3269
E20: v tom | F20: neinvestiční výdaje | J20: =#REF!+#REF! ->  | K20: =#REF!+#REF! ->  | L20: =#REF!+#REF! ->  | M20: 188831 | N20: 175302 | O20: 183018 | P20: 214537.62 | Q20: 273991.48 | R20: 266546.2059 | S20: 926398.7561 | T20: 733798.4317 | U20: 335463.8727 | V20: 565845.0351 | W20: 139372.2255 | X20: 880061.8629
F21: investiční výdaje | J21: =#REF!+#REF! ->  | K21: =#REF!+#REF! ->  | L21: =#REF!+#REF! ->  | M21: 0 | N21: 262.73 | O21: 0 | P21: 531 | Q21: 3226.99 | R21: 525 | S21: 1264.7988 | T21: 49.684 | U21: 0 | V21: 6908.20565 | W21: 66 | X21: 22644.46395
E22: v % | F22: neinvestiční výdaje | J22: =J20/J19 ->  | M22: 1 | N22: 0.9985035149 | O22: 1 | P22: 0.9975310206 | Q22: 0.9883593976 | R22: 0.9980342321 | S22: 0.998636576 | T22: 0.9999322966 | U22: =U20/U19 -> 1 | V22: =V20/V19 -> 0.9879386005 | W22: =W20/W19 -> 0.9995266721 | X22: =X20/X19 -> 0.9749149161
F23: investiční výdaje | J23: =J21/J19 ->  | M23: 0 | N23: 0.001496485086 | O23: 0 | P23: 0.002468979435 | Q23: 0.01164060245 | R23: 0.001965767886 | S23: 0.001363424049 | T23: 6.770338294e-05 | U23: =U21/U19 -> 0 | V23: =V21/V19 -> 0.0120613995 | W23: =W21/W19 -> 0.0004733278823 | X23: =X21/X19 -> 0.0250850839
D24: Výdaje z rozpočtu kapitoly 700-Obce a DSO, KÚ
E25: Celkem | J25: =#REF!+#REF! ->  | K25: =#REF!+#REF! ->  | L25: =#REF!+#REF! ->  | M25: 22844441.05 | N25: 23658493.32 | O25: 24650845.49 | P25: 26339745 | Q25: 25517597.93 | R25: 24950916.19 | S25: 24188775.04 | T25: 23493079.13 | U25: =U26+U27 -> 23231202.19 | V25: =V26+V27 -> 25216978.46 | W25: =W26+W27 -> 22442342.85 | X25: =X26+X27 -> 26119770.12
E26: v tom | F26: neinvestiční výdaje | J26: =#REF!+#REF! ->  | K26: =#REF!+#REF! ->  | L26: =#REF!+#REF! ->  | M26: 21574202.99 | N26: 22521964.91 | O26: 22963055.78 | P26: 23685672.11 | Q26: 23022612.64 | R26: 22739513.17 | S26: 22481354.1 | T26: 22175702.41 | U26: 21094688.76 | V26: 22537016.06 | W26: 20954123.2 | X26: 24343457.01
F27: investiční výdaje | J27: =#REF!+#REF! ->  | K27: =#REF!+#REF! ->  | L27: =#REF!+#REF! ->  | M27: 1270238.06 | N27: 1136528.41 | O27: 1687789.71 | P27: 2654072.89 | Q27: 2494985.29 | R27: 2211403.02 | S27: 1707420.94 | T27: 1317376.724 | U27: 2136513.429 | V27: 2679962.406 | W27: 1488219.65 | X27: 1776313.106
E28: v % | F28: neinvestiční výdaje | J28: =J26/J25 ->  | M28: 0.9443961856 | N28: 0.9519610824 | O28: 0.9315321776 | P28: 0.8992369558 | Q28: 0.9022249157 | R28: 0.911369867 | S28: 0.9294126744 | T28: 0.9439249016 | U28: =U26/U25 -> 0.9080325929 | V28: =V26/V25 -> 0.8937238889 | W28: =W26/W25 -> 0.9336869747 | X28: =X26/X25 -> 0.9319935398
F29: investiční výdaje | J29: =J27/J25 ->  | M29: 0.05560381439 | N29: 0.04803891755 | O29: 0.06846782236 | P29: 0.1007630442 | Q29: 0.09777508435 | R29: 0.08863013298 | S29: 0.07058732562 | T29: 0.05607509839 | U29: =U27/U25 -> 0.0919674071 | V29: =V27/V25 -> 0.1062761111 | W29: =W27/W25 -> 0.06631302532 | X29: =X27/X25 -> 0.06800646018
D30: Podíl výdajů na odborné vzdělávání z celkových výdajů na školství a podíl na HDP
E31: Výdaje na školství celkem v mld. Kč1),3) | J31: 114.2477725 | K31: 121.3480397 | L31: 128.5541745 | M31: 141.2484394 | N31: 151.5849897 | O31: 149.7997268 | P31: 162.803504 | Q31: 161.8748019 | R31: 172.7687959 | S31: 170.3742654 | T31: 171.7249628 | U31: 177.5906341 | V31: 181.6089812 | W31: 172.2724 | X31: 193.6421335
E32: Podíl výdajů na odborné vzdělávání na celkových výdajích na školství | J32: =J13/J31/1000000 ->  | M32: 0.1630692144 | N32: 0.1572323097 | O32: 0.1657804324 | P32: 0.1630748203 | Q32: 0.1590077879 | R32: 0.1457401043 | S32: 0.1440842076 | T32: 0.1410798224 | U32: 0.13270219 | V32: 0.142006918 | W32: =W13/W31/1000000 -> 0.1310818278 | X32: 0.139548537
E33: HDP v mld. Kč v běžných cenách | J33: 2688.107 | K33: 3057.66 | L33: 3257.972 | M33: 3507.131 | N33: 3840.117 | O33: 4024.117 | P33: 3930.409 | Q33: 3962.464 | R33: 4033.755 | S33: 4059.912 | T33: 4098.128 | U33: 4313.789 | V33: 4595.783 | W33: 4773.24 | X33: 5055.029
E34: Výdaje na OV v % HDP | J34: =J13/1000000/J33 ->  | M34: 0.006567553949 | N34: 0.006206596843 | O34: 0.006171257816 | P34: 0.006754806474 | Q34: 0.006495795084 | R34: 0.00624215956 | S34: 0.006046495841 | T34: 0.005911705844 | U34: 0.005463101246 | V34: 0.005611607795 | W34: =W13/1000000/W33 -> 0.004730912562 | X34: 0.005345662002
D35: Komentáře: | X35: Zdroj: Státní závěrečný účet, ZÚ - kapitola 333-MŠMT; 700-Obce a DSO, KÚ; ČSÚ
D36: 1) | E36: Celkové výdaje kapitoly 333-MŠMT a kapitoly 700-Obce (část vzdělávání).
D37: 2) | E37: V celkových výdajích jsou zahrnuty výdaje konzervatoří, VOŠ a středisek praktického vyučování a školního hospodářství. Podle změn v rozpočtové skladbě platných od září 2006 došlo k zahrnutí školních hospodářství pod paragraf středisek praktického vyučování a vzhledem k nemožnosti je oddělit jsou od roku 2007 uváděna v rámci výdajů na střední odborná učiliště a střední školy.
D39: 3) | E39: Meziroční snížení výdajů v roce 2008 je dáno aplikací zákona č. 26/2008 Sb. a z něj vyplývajícím nepřeváděním nevyčerpaných prostředků OSS do rezervních fondů, a tudíž jejich nezahrnutím do čerpání.
D40: 4) | E40: Od roku 2008 nejsou k dispozici údaje o dotacích soukromým školám v potřebném členění.
E41: Od roku 2015 se údaje nesledují.

Sheet B5.3.13
D4: Tab. B5.3.13 | H4: SŠ – odborné vzdělávání a konzervatoře – zaměstnanci
B5: 48 | D5: (přepočtené počty) v letech 2007 až 2017 (bez škol pro žáky se SVP)
J7: 2003 | K7: 2004 | L7: 2005 | M7: 2006 | N7: 2007 | O7: 2008 | P7: 2009 | Q7: 2010 | R7: 2011 | S7: 2012 | T7: 2013 | U7: 2014 | V7: 2015 | W7: 2016 | X7: 2017
V11: 4) | W11: 4) | X11: 4)
D12: Všichni zřizovatelé (bez jiných resortů)1),2)
E13: Zaměstnanci celkem | J13: 44948.494 | K13: 44984.314 | L13: 44792.161 | M13: 44694.781 | N13: 44448.536 | O13: 43817.935 | P13: 43530.802 | Q13: 43072.512 | R13: 41450.671 | S13: 39498.115 | T13: 37599.578 | U13: 36343.672 | V13: . | W13: . | X13: .
E14: z toho | F14: učitelé3) | J14: 25673.171 | K14: 26045.61 | L14: 28506.035 | M14: 26445.581 | N14: 26468.939 | O14: 26365.23 | P14: 26347.673 | Q14: 26146.017 | R14: 25458.011 | S14: 24378.298 | T14: 23109.043 | U14: 22167.105 | V14: . | W14: . | X14: .
F15: učitelé odborného výcviku | J15: 7964.187 | K15: 7711.128 | L15: 5179.345 | M15: 7256.933 | N15: 7013.298 | O15: 6712.645 | P15: 6487.59 | Q15: 6334.987 | R15: 6012.128 | S15: 5713.329 | T15: 5415.007 | U15: 5265.326 | V15: . | W15: . | X15: .
D16: z toho: SOU včetně SPV
D17: Všichni zřizovatelé (bez jiných resortů)
E18: Zaměstnanci celkem | J18: 23239.338 | K18: 22825.188 | L18: 22215.37 | M18: 21628.325 | N18: 21065.061 | O18: 20423.752 | P18: 20007.416 | Q18: 19621.492 | R18: 18734.135 | S18: 16171.689 | T18: 15318.934 | U18: 14768.882 | V18: . | W18: . | X18: .
E19: z toho | F19: učitelé | J19: 8972.047 | K19: 8955.131 | L19: 11078.631 | M19: 8651.151 | N19: 8493.08 | O19: 8358.83 | P19: 8261.218 | Q19: 8123.424 | R19: 7860.549 | S19: 6434.572 | T19: 6030.882 | U19: 5714.99 | V19: . | W19: . | X19: .
F20: učitelé odborného výcviku | J20: 7963.039 | K20: 7708.991 | L20: 5157.956 | M20: 7194.651 | N20: 6972.564 | O20: 6676.106 | P20: 6476.471 | Q20: 6322.39 | R20: 6001.465 | S20: 5457.957 | T20: 5173.308 | U20: 5000.782 | V20: . | W20: . | X20: .
D21: z toho: SOŠ a konzervatoře (bez konzervatoří pro žáky se zdravotním postižením)
D22: Všichni zřizovatelé (bez jiných resortů)
E23: Zaměstnanci celkem | J23: 21709.156 | K23: 22159.126 | L23: 22576.791 | M23: 23066.456 | N23: 23383.475 | O23: 23394.183 | P23: 23523.386 | Q23: 23451.02 | R23: 22716.536 | S23: 23326.426 | T23: 22280.644 | U23: 21574.79 | V23: . | W23: . | X23: .
E24: z toho | F24: učitelé | J24: 16701.124 | K24: 17090.479 | L24: 17427.404 | M24: 17794.43 | N24: 17975.859 | O24: 18006.4 | P24: 18086.455 | Q24: 18022.593 | R24: 17597.462 | S24: 17943.726 | T24: 17078.161 | U24: 16452.115 | V24: . | W24: . | X24: .
F25: učitelé odborného výcviku | J25: 1.148 | K25: 2.137 | L25: 21.389 | M25: 62.282 | N25: 40.734 | O25: 36.539 | P25: 11.119 | Q25: 12.597 | R25: 10.663 | S25: 255.372 | T25: 241.699 | U25: 264.544 | V25: . | W25: . | X25: .
D26: Komentáře: | X26: Zdroj: databáze MŠMT
D27: 1) | E27: Údaje včetně středisek praktického vyučování.
D28: 2) | E28: Údaje včetně konzervatoří, neboť před rokem 2006 nebyly konzervatoře vykazovány samostatně a nelze je od středních škol oddělit.
D29: 3) | E29: Včetně vedoucích zaměstnanců.
D30: 4) | E30: Od roku 2015 se přepočtené počty zaměstnanců podle oborů nesledují.

Sheet B5.3.14
D4: Tab. B5.3.14 | H4: SŠ – odborné vzdělávání a konzervatoře – průměrné měsíční mzdy
D5: zaměstnanců v letech 2007 až 2017 (bez škol pro žáky se SVP)
B6: 132
J7: 2003 | K7: 2004 | L7: 2005 | M7: 2006 | N7: 2007 | O7: 2008 | P7: 2009 | Q7: 2010 | R7: 2011 | S7: 2012 | T7: 2013 | U7: 2014 | V7: 2015 | W7: 2016 | X7: 2017
V11: 4) | W11: 4) | X11: 4)
D12: Všichni zřizovatelé (bez jiných resortů)1),2)
D13: Nominální mzda (v běžných cenách)
E14: Zaměstnanci celkem | J14: 18002.82221 | K14: 18655.04031 | L14: 19816.16461 | M14: 20929.5829 | N14: 22220.61355 | O14: 23052.82854 | P14: 24420.08602 | Q14: 24091.86478 | R14: 24583.84024 | S14: 24845.88565 | T14: 24986.62711 | U14: 25456.1739 | V14: . | W14: . | X14: .
E15: z toho | F15: učitelé3) | J15: 20820.4694 | K15: 21482.41821 | L15: 22608.12356 | M15: 24142.20306 | N15: 25593.69589 | O15: 26477.80736 | P15: 27761.05744 | Q15: 27124.82793 | R15: 27713.91547 | S15: 27769.99848 | T15: 27928.21167 | U15: 28452.84344 | V15: . | W15: . | X15: .
F16: učitelé odborného výcviku | J16: 16782.98344 | K16: 17427.21328 | L16: 18430.60099 | M16: 19428.33543 | N16: 20675.35191 | O16: 21400.47485 | P16: 22470.94933 | Q16: 22169.98376 | R16: 22654.62885 | S16: 24308.28431 | T16: 24486.20062 | U16: 24905.53383 | V16: . | W16: . | X16: .
D17: Reálná mzda (ve stálých cenách roku 2015)
E18: Zaměstnanci celkem | J18: =J14/J$42*100 -> 18851.12273 | K18: 19016.35098 | L18: 19816.16461 | M18: 25216.36494 | N18: 26049.95726 | O18: 25416.56951 | P18: 26630.41006 | Q18: 25905.23094 | R18: 25932.32093 | S18: 25378.84132 | T18: 25162.76647 | U18: =U14/U$42*100 -> 25532.77221 | V18: . | W18: . | X18: .
E19: z toho | F19: učitelé | J19: =J15/J$42*100 -> 21801.53864 | K19: 21898.48952 | L19: 22608.12356 | M19: 29086.99164 | N19: 30004.33282 | O19: 29192.73138 | P19: 30273.78128 | Q19: 29166.48164 | R19: 29234.08805 | S19: 28365.67772 | T19: 28125.08729 | U19: =U15/U$42*100 -> 28538.45882 | V19: . | W19: . | X19: .
F20: učitelé odborného výcviku | J20: =J16/J$42*100 -> 17573.80464 | K20: 17764.7434 | L20: 18430.60099 | M20: 23407.63305 | N20: 24238.39614 | O20: 23594.79035 | P20: 24504.85205 | Q20: 23838.69222 | R20: 23897.28781 | S20: 24829.70818 | T20: 24658.8123 | U20: =U16/U$42*100 -> 24980.47526 | V20: . | W20: . | X20: .
D21: z toho: SOU včetně SPV
D22: Všichni zřizovatelé (bez jiných rezorů)
D23: Nominální mzda (v běžných cenách)
E24: Zaměstnanci celkem | J24: 17234 | K24: 17785 | L24: 18906.74237 | M24: 19933 | N24: 21133.47049 | O24: 21941.99462 | P24: 23276.84268 | Q24: 23042.34103 | R24: 23540.88586 | S24: 24004.96408 | T24: 24176.17223 | U24: 24754.63093 | V24: . | W24: . | X24: .
E25: z toho | F25: učitelé | J25: 20885 | K25: 21407 | L25: 22111.12355 | M25: 24114 | N25: 25540.71924 | O25: 26411.04161 | P25: 27690.77661 | Q25: 27143.29877 | R25: 27732.82388 | S25: 27952.89002 | T25: 28167.19855 | U25: 29118.1641 | V25: . | W25: . | X25: .
F26: učitelé odborného výcviku | J26: 16783 | K26: 17428 | L26: 18427.885 | M26: 19433 | N26: 20680.55375 | O26: 21406.52961 | P26: 22473.51761 | Q26: 22172.72825 | R26: 22656.27405 | S26: 24296.8619 | T26: 24506.13945 | U26: 24898.87778 | V26: . | W26: . | X26: .
D27: Reálná mzda (ve stálých cenách roku 2015)
E28: Zaměstnanci celkem | J28: =J24/J$42*100 -> 18046.0733 | K28: 18129.45973 | L28: 18906.74237 | M28: 24015.66265 | N28: 24775.46365 | O28: 24191.83531 | P28: 25383.68886 | Q28: 24776.71078 | R28: 24832.15808 | S28: 24519.88159 | T28: 24346.59842 | U28: =U24/U$42*100 -> 24829.11829 | V28: . | W28: . | X28: .
E29: z toho | F29: učitelé | J29: 21869.10995 | K29: 21821.6106 | L29: 22111.12355 | M29: 29053.01205 | N29: 29942.22654 | O29: 29119.11974 | P29: 30197.13916 | Q29: 29186.34276 | R29: 29254.03363 | S29: 28552.49236 | T29: 28365.75887 | U29: =U25/U$42*100 -> 29205.78145 | V29: . | W29: . | X29: .
F30: učitelé odborného výcviku | J30: 17573.82199 | K30: 17765.54536 | L30: 18427.885 | M30: 23413.25301 | N30: 24244.49443 | O30: 23601.46594 | P30: 24507.65279 | Q30: 23841.64327 | R30: 23899.02326 | S30: 24818.04076 | T30: 24678.89169 | U30: =U26/U$42*100 -> 24973.79918 | V30: . | W30: . | X30: .
D31: z toho: SOŠ a konzervatoře (bez konzervatoří pro žáky se zdravotním postižením)
D32: Všichni zřizovatelé (bez jiných resortů)
D33: Nominální mzda (v běžných cenách)
E34: Zaměstnanci celkem | J34: 18825.91025 | K34: 19551.03922 | L34: 20711.02835 | M34: 21864.23562 | N34: 23199.96904 | O34: 24022.61648 | P34: 25392.4522 | Q34: 24970.00235 | R34: 25443.95589 | S34: 25428.87775 | T34: 25543.85089 | U34: 25936.41056 | V34: . | W34: . | X34: .
E35: z toho | F35: učitelé | J35: 20785.86014 | K35: 21522.1442 | L35: 22924.06733 | M35: 24155.77153 | N35: 25618.72585 | O35: 26508.80098 | P35: 27793.1591 | Q35: 27116.50246 | R35: 27705.46935 | S35: 27704.41407 | T35: 27843.81724 | U35: 28221.73024 | V35: . | W35: . | X35: .
F36: učitelé odborného výcviku | J36: 16809.08827 | K36: 16332.04648 | L36: 19085.51124 | M36: 18852.82131 | N36: 19784.93601 | O36: 20294.19935 | P36: 20975.00525 | Q36: 20792.53658 | R36: 21728.65673 | S36: 24552.41047 | T36: 24059.43136 | U36: 25031.35584 | V36: . | W36: . | X36: .
D37: Reálná mzda (ve stálých cenách roku 2015)
E38: Zaměstnanci celkem | J38: =J34/J$42*100 -> 19712.99503 | K38: 19929.70359 | L38: 20711.02835 | M38: 26342.45255 | N38: 27198.08797 | O38: 26485.79546 | P38: 27690.78757 | Q38: 26849.46489 | R38: 26839.61592 | S38: 25974.33887 | T38: 25723.91832 | U38: =U34/U$42*100 -> 26014.45392 | V38: . | W38: . | X38: .
E39: z toho | F39: učitelé | J39: 21765.29857 | K39: 21938.98491 | L39: 22924.06733 | M39: 29103.33919 | N39: 30033.67626 | O39: 29226.90296 | P39: 30308.78855 | Q39: 29157.52953 | R39: 29225.17863 | S39: 28298.68649 | T39: 28040.09793 | U39: =U35/U$42*100 -> 28306.65019 | V39: . | W39: . | X39: .
F40: učitelé odborného výcviku | J40: 17601.13955 | K40: 16648.36543 | L40: 19085.51124 | M40: 22714.24254 | N40: 23194.53225 | O40: 22375.08197 | P40: 22873.50627 | Q40: 22357.56622 | R40: 22920.52397 | S40: 25079.07096 | T40: 24229.0346 | U40: =U36/U$42*100 -> 25106.67587 | V40: . | W40: . | X40: .
D41: Index spotřebitelských cen a meziroční inflace
E42: Index spotřebitelských cen (rok 2015 = 100) | J42: 95.5 | K42: 98.1 | L42: 100 | M42: 83 | N42: 85.3 | O42: 90.7 | P42: 91.7 | Q42: 93 | R42: 94.8 | S42: 97.9 | T42: 99.3 | U42: 99.7 | V42: 100 | W42: 100.7 | X42: 103.1
E43: Meziroční inflace | J43: 0.001 | K43: 0.028 | L43: 0.019 | M43: 0.025 | N43: 0.028 | O43: 0.063 | P43: 0.01 | Q43: 0.015 | R43: 0.019 | S43: 0.033 | T43: 0.014 | U43: 0.004 | V43: 0.003 | W43: 0.007 | X43: 0.025
D44: Komentáře: | X44: Zdroj: databáze MŠMT, ČSÚ
D45: 1) | E45: Údaje včetně středisek praktického vyučování.
D46: 2) | E46: Údaje včetně konzervatoří, neboť před rokem 2006 nebyly konzervatoře vykazovány samostatně a nelze je od středních škol oddělit.
D47: 3) | E47: Včetně vedoucích zaměstnanců.
D48: 4) | E48: Od roku 2015 se mzdy podle oborů nesledují.

Sheet GB1
D4: Obr. B1: | H4: SŠ – odborné vzdělávání, denní forma vzdělávání – struktura škol ve školním roce 2007/08 až 2017/18 – podle počtu žáků
B6: 132
K10: 2005/06 | L10: 2007/08 | M10: 2008/09 | N10: 2009/10 | O10: 2010/11 | P10: 2011/12 | Q10: 2012/13 | R10: 2013/14 | S10: 2014/15 | T10: 2015/16 | U10: 2016/17 | V10: 2017/18
J11: do 100 | K11: 0.2852779475 | L11: 0.1625 | M11: 0.1674167417 | N11: 0.1755656109 | O11: 0.1909090909 | P11: 0.2124883504 | Q11: 0.2386910491 | R11: 0.2451361868 | S11: 0.2462612164 | T11: 0.2467402207 | U11: 0.2497502498 | V11: 0.246506986
J12: 101–200 | K12: 0.2101405009 | L12: 0.1553571429 | M12: 0.1647164716 | N12: 0.1628959276 | O12: 0.1727272727 | P12: 0.1714818267 | Q12: 0.1780558229 | R12: 0.1926070039 | S12: 0.1934197408 | T12: 0.1975927783 | U12: 0.2147852148 | V12: 0.2175648703
J13: 201–300 | K13: 0.1918142944 | L13: 0.2008928571 | M13: 0.1890189019 | N13: 0.1828054299 | O13: 0.1781818182 | P13: 0.1845293569 | Q13: 0.1693936477 | R13: 0.1712062257 | S13: 0.1824526421 | T13: 0.1805416249 | U13: 0.1718281718 | V13: 0.1776447106
J14: 301–400 | K14: 0.1276725718 | L14: 0.1464285714 | M14: 0.1503150315 | N14: 0.1520361991 | O14: 0.1554545455 | P14: 0.1509785648 | Q14: 0.1520692974 | R14: 0.140077821 | S14: 0.1286141575 | T14: 0.1273821464 | U14: 0.1258741259 | V14: 0.121756487
J15: 401–500 | K15: 0.07025045816 | L15: 0.1089285714 | M15: 0.1080108011 | N15: 0.1049773756 | O15: 0.09636363636 | P15: 0.08760484623 | Q15: 0.07892204042 | R15: 0.07101167315 | S15: 0.08474576271 | T15: 0.09829488465 | U15: 0.0959040959 | V15: 0.09381237525
J16: 501–600 | K16: 0.05192425168 | L16: 0.08035714286 | M16: 0.07470747075 | N16: 0.07692307692 | O16: 0.07272727273 | P16: 0.0624417521 | Q16: 0.05774783446 | R16: 0.06906614786 | S16: 0.05882352941 | T16: 0.05115346038 | U16: 0.04895104895 | V16: 0.05489021956
J17: 601–700 | K17: 0.03176542456 | L17: 0.04642857143 | M17: 0.04500450045 | N17: 0.04524886878 | O17: 0.04272727273 | P17: 0.04380242311 | Q17: 0.05197305101 | R17: 0.046692607 | S17: 0.04386839482 | T17: 0.04513540622 | U17: 0.03996003996 | V17: 0.03393213573
J18: nad 700 | K18: 0.03115455101 | L18: 0.09910714286 | M18: 0.100810081 | N18: 0.09954751131 | O18: 0.09090909091 | P18: 0.08667287978 | Q18: 0.07314725698 | R18: 0.06420233463 | S18: 0.06181455633 | T18: 0.05315947844 | U18: 0.053 | V18: 0.05389221557
K19: =SUM(K11:K18) -> 1 | L19: =SUM(L11:L18) -> 1 | M19: 1 | N19: 1 | O19: 1 | P19: 1 | Q19: 1 | R19: 1 | S19: 1 | T19: 1 | U19: 1 | V19: 1
W37: Zdroj: databáze MŠMT

Sheet GB2
D4: Obr. B2: | H4: SŠ – odborné vzdělávání – struktura žáků ve školním roce 2007/08 až 2017/18 – podle druhu vzdělávání
B6: 132
K10: 2003/04 | L10: 2004/05 | M10: 2005/06 | N10: 2007/08 | O10: 2008/09 | P10: 2009/10 | Q10: 2010/11 | R10: 2011/12 | S10: 2012/13 | T10: 2013/14 | U10: 2014/15 | V10: 2015/16 | W10: 2016/17 | X10: 2017/18
J11: střední vzdělávání | K11: 0.006528556956 | L11: 0.006073478075 | M11: 0.005498845266 | N11: 0.004135758825 | O11: 0.004291127288 | P11: 0.00464829817 | Q11: 0.005349725278 | R11: 0.005605384227 | S11: 0.005783817673 | T11: 0.006135544003 | U11: 0.006626044252 | V11: 0.007359677926 | W11: 0.008125602069 | X11: 0.008945787568
J12: střední vzdělávání s výučním listem | K12: 0.3412919112 | L12: 0.3272912013 | M12: 0.3154803695 | N12: 0.2921515168 | O12: 0.2782682492 | P12: 0.2754765294 | Q12: 0.2755578238 | R12: 0.2830951113 | S12: 0.2959842939 | T12: 0.3044072877 | U12: 0.3077830035 | V12: 0.3070968562 | W12: 0.3024015143 | X12: 0.2994612663
J13: střední vzdělávání s maturitní zkouškou | K13: 0.5515142144 | L13: 0.5632325215 | M13: 0.5745057737 | N13: 0.6008673507 | O13: 0.6097225709 | P13: 0.6119240851 | Q13: 0.6093888059 | R13: 0.611691308 | S13: 0.609440721 | T13: 0.6067662717 | U13: 0.6116715821 | V13: 0.6172064655 | W13: 0.6253265958 | X13: 0.6351303681
J14: nástavbové studium | K14: 0.1006653174 | L14: 0.1034027991 | M14: 0.1045150115 | N14: 0.1028453737 | O14: 0.1077180526 | P14: 0.1079510874 | Q14: 0.109703645 | R14: 0.09960819648 | S14: 0.08879116739 | T14: 0.0826908966 | U14: 0.07391937014 | V14: 0.06833700035 | W14: 0.06414628788 | X14: 0.05646257804
D35: Komentáře: | X35: Zdroj: databáze MŠMT
D36: 1) | E36: Střední vzdělávání s výučním listem a střední vzdělávání s maturitní zkouškou včetně zkráceného studia.

Sheet GB3
D4: Obr. B3: | H4: SŠ – odborné vzdělávání, denní forma vzdělávání – poměrové ukazatele ve školním roce 2007/08 až 2017/18
B6: 132
K10: 2003/04 | L10: 2004/05 | M10: 2005/06 | N10: 2007/08 | O10: 2008/09 | P10: 2009/10 | Q10: 2010/11 | R10: 2011/12 | S10: 2012/13 | T10: 2013/14 | U10: 2014/15 | V10: 2015/16 | W10: 2016/17 | X10: 2017/18
J11: průměrný počet žáků na jednu školu | K11: 243.7541083 | L11: 249.9625935 | M11: 243.2919976 | N11: 346.86875 | O11: 343.8352835 | P11: 340.7837104 | Q11: 326.19 | R11: 313.1453868 | S11: 301.572666 | T11: 287.8044747 | U11: 284.4735793 | V11: =B5.3.5!V13/B5.3.1!V13 -> 296.9831182 | W11: =B5.3.5!W13/B5.3.1!W13 -> 292.636004 | X11: =B5.3.5!X13/B5.3.1!X13 -> 288.2339585
J12: průměrný počet žáků na jednu třídu | K12: 23.87409836 | L12: 23.94100436 | M12: 23.9416291 | N12: 23.57503489 | O12: 23.32559886 | P12: 23.11355266 | Q12: 22.39896373 | R12: 21.93417365 | S12: 21.6615428 | T12: 21.24767227 | U12: 20.96827058 | V12: =B5.3.4!V13/B5.3.3!V12 -> 22.25453463 | W12: =B5.3.4!W13/B5.3.3!W12 -> 22.26350179 | X12: =B5.3.4!X13/B5.3.3!X12 -> 22.0543615
D28: Komentáře: | X28: Zdroj: databáze MŠMT
D29: 1) | E29: Do školního roku 2005/06 jsou školy započteny podle počtu jednotlivých typů škol, od školního roku 2006/07 je uveden počet středních škol bez ohledu na počet jejich pracovišť.
